{"text_format":"1","workbook":"xlsx","n_sheets":11,"sheets":["Einstieg","Direktzahlungen","Ökoregelungen","Formeln","Druck","Vorlage Einstieg","Parameter","Konditionalität","Hilfe","Rech_öko","Berechnungen"],"not_rendered":{"charts":4,"images":5,"macros":1,"external_links":0,"defined_names":3,"comments":1,"pivot_tables":0},"unopened":[],"bounds":{"document_bytes":16777216,"sheet_cells":100000,"rows_first":2000,"rows_last":500,"rows_between":2000,"halvings":0,"cell_chars":16384,"cell_head_chars":4096},"cells_cut":0,"cells_raw":0,"read":"whole","date_system":"1900"}

{"sheet":"Einstieg","index":0,"n_rows":0,"n_cols":0,"rows_kept":0,"cut":false,"hidden":false,"merged":[]}

{"sheet":"Direktzahlungen","index":1,"n_rows":94,"n_cols":16,"rows_kept":94,"cut":false,"hidden":false,"merged":[]}
[null,"Aktuell gültige Betriebsdaten für Direktzahlungen ",null,null,null,null,null,null,null,null,"Kosten für Erfüllung der Konditionalitäten","ha","Kosten/ha (€)","Kosten ges. (€)"]
[null,null,"ha",null,null,null,null,null,null,null,"GLÖZ 1    Erhaltung von Dauergrünland",{"$f":"C7","v":0},0,{"$f":"+L2*M2","v":0}]
[null,"Ackerland (AL):",0,null,"Anzahl Mutterkühe:",null,null,0,null,null,"GLÖZ 2    Schutz von Feuchtgebieten und Torfflächen",0,0,0]
[null,"    Ackerland (AL) ohne Fruchtwechsel",0,null,"Anzahl Mutterschafe/-ziegen",null,null,0,null,null,"GLÖZ 3    Verbot des Abbrennens von Stoppelfeldern",0,0,0]
[null,"    Gras- und Grünfutterpfl., Leguminosen (AL)",0,null,null,null,null,null,null,null,"GLÖZ 4    Pufferstreifen entlang von Wasserläufen",0,0,0]
[null,"    Landschaftselemente u. Pufferstreifen auf AL",0,null,"Junglandwirt (Jahr des erstmaligen Antrags)",null,null,0,null,null,"GLÖZ 5    Bodenschädigung und -erosion",{"$f":"C3","v":0},0,0]
[null,"Dauergrünland (DG):",0,null,"Ökolandwirt",null,null,"nein",null,null,"GLÖZ 6    Mindestbodenbedeckung",0,0,0]
[null,"Dauerkulturfläche (DK):",0,null,null,null,null,null,null,null,"GLÖZ 7    Fruchtwechsel auf Ackerland",{"$f":"IF(C9=0,0,IF(OR(H7=\"ja\",C3<=10,AND(C9<=50,(C5+C7+L9+Ökoregelungen!F5)/C9>=0.75)),0,(C4)))","v":0},0,0]
[null,"Förderfähige ldw. Fläche:",{"$f":"C3+C7+C8","v":0},null,null,null,null,null,null,null,"GLÖZ 8    Brache (4% des AL)",{"$f":"IF(C9=0,0,IF(OR(C3<=10,AND(C9<=50,(C5+C7)/C9>=0.75)),0,MAX(0,C3*0.04-C6)))","v":0},0,0]
[null,"LF in Natura-2000-Gebieten:",0,null,null,null,null,null,null,null,"GLÖZ 9    Dauergrünland in Natura-2000-Gebieten",0,0,0]
[null,null,null,null,null,null,null,null,null,null,null,"Summe",null,{"$f":"SUM(N2:N10)","v":0}]
[null,"Berechnung der Einkommensstützung für Nachhaltigkeit in den Jahren"]
[null,null,null,2021,2023,2024,2025,2026]
[null,"Basisprämie/Greeningprämie (bis 2022)","€/ha",253.94,156.56,154.72,151.97,147.38]
[null,"Einkommensgrundstützung (ab 2023)","€/Betr",{"$f":"D14*C9","v":0},{"$f":"+$C$9*E14","v":0},{"$f":"+$C$9*F14","v":0},{"$f":"+$C$9*G14","v":0},{"$f":"+$C$9*H14","v":0}]
[null,"ersten 30 ha (bis 2022) / 40 ha (ab 2023)","€/ha",50.12,69.16,69.16,68.39,67.23]
[null,null,"€/Betr",{"$f":"IF($C$9>=30,30*D16,$C$9*D16)","v":0},{"$f":"IF($C$9>=40,40*E16,$C$9*E16)","v":0},{"$f":"IF($C$9>=40,40*F16,$C$9*F16)","v":0},{"$f":"IF($C$9>=40,40*G16,$C$9*G16)","v":0},{"$f":"IF($C$9>=40,40*H16,$C$9*H16)","v":0}]
[null,"weiteren 16 ha (bis 2022) / 20 ha (ab 2023)","€/ha",30.07,41.49,41.49,40.340000000000003,39.19]
[null,null,"€/Betr",{"$f":"IF($C$9>(30+16),16*D18,IF(C9-30<0,0,($C$9-30)*D18))","v":0},{"$f":"IF($C$9>(40+20),20*E18,IF($C$9-40<0,0,($C$9-40)*E18))","v":0},{"$f":"IF($C$9>(40+20),20*F18,IF($C$9-40<0,0,($C$9-40)*F18))","v":0},{"$f":"IF($C$9>(40+20),20*G18,IF($C$9-40<0,0,($C$9-40)*G18))","v":0},{"$f":"IF($C$9>(40+20),20*H18,IF($C$9-40<0,0,($C$9-40)*H18))","v":0}]
[null,"Umverteilungseinkommensstützung","€/Betr",{"$f":"+D17+D19","v":0},{"$f":"+E17+E19","v":0},{"$f":"+F17+F19","v":0},{"$f":"+G17+G19","v":0},{"$f":"+H17+H19","v":0}]
[null,"Junglandwirte-Prämie","€/ha",44.27,134.04,134.04,134.04,134.04]
[null,"für max. 90 ha LF (bis 2022) / max. 120 ha (ab 2023)","€/Betr",{"$f":"IF(AND($H$6>D13-5,$H$6<=D13),MIN(90,$C$9),0)*D21","v":0},{"$f":"IF(AND($H$6>E13-5,$H$6<=E13),MIN(120,$C$9),0)*E21","v":0},{"$f":"IF(AND($H$6>F13-5,$H$6<=F13),MIN(120,$C$9),0)*F21","v":0},{"$f":"IF(AND($H$6>G13-5,$H$6<=G13),MIN(120,$C$9),0)*G21","v":0},{"$f":"IF(AND($H$6>H13-5,$H$6<=H13),MIN(120,$C$9),0)*H21","v":0}]
[null,"Zahlung für Mutterkühe","€/Tier",null,77.930000000000007,77.06,75.760000000000005,73.599999999999994]
[null,null,"€/Betr",null,{"$f":"$H$3*E23","v":0},{"$f":"$H$3*F23","v":0},{"$f":"$H$3*G23","v":0},{"$f":"$H$3*H23","v":0}]
[null,"Zahlung für Mutterschafe und -ziegen","€/Tier",null,34.83,34.44,33.86,32.89]
[null,null,"€/Betr",null,{"$f":"E25*$H4","v":0},{"$f":"F25*$H4","v":0},{"$f":"G25*$H4","v":0},{"$f":"H25*$H4","v":0}]
[null,"gekoppelte Einkommensstützung","€/Betr",null,{"$f":"+E24+E26","v":0},{"$f":"+F24+F26","v":0},{"$f":"+G24+G26","v":0},{"$f":"+H24+H26","v":0}]
[null,"Summe Einkommensstützung",null,{"$f":"D20+D15+D22","v":0},{"$f":"+E15+E20+E22+E27","v":0},{"$f":"+F15+F20+F22+F27","v":0},{"$f":"+G15+G20+G22+G27","v":0},{"$f":"+H15+H20+H22+H27","v":0}]
[null,"je ha LF",null,{"$f":"IF($C$9=0,0,D28/$C$9)","v":0},{"$f":"IF($C$9=0,0,E28/$C$9)","v":0},{"$f":"IF($C$9=0,0,F28/$C$9)","v":0},{"$f":"IF($C$9=0,0,G28/$C$9)","v":0},{"$f":"IF($C$9=0,0,H28/$C$9)","v":0}]
[]
[]
[]
[]
[]
[]
[]
[]
[]
[]
[]
[]
[]
[]
[]
[]
[]
[]
[]
[]
[]
[]
[]
[]
[]
[]
[]
[]
[]
[]
[]
[]
[]
[]
[]
[]
[]
[]
[]
[]
[]
[]
[]
[]
[]
[]
[]
[]
[]
[]
[]
[]
[]
[]
[]
[]
[]
[]
[]
[null,null,null,null,null,null,null,null,null,null,null,{"$f":"D13","v":2021},{"$f":"E13","v":2023},{"$f":"F13","v":2024},{"$f":"G13","v":2025},{"$f":"H13","v":2026}]
[null,null,null,null,null,null,null,null,null,null,"Grundstützung",{"$f":"D15","v":0},{"$f":"E15","v":0},{"$f":"F15","v":0},{"$f":"G15","v":0},{"$f":"H15","v":0}]
[null,null,null,null,null,null,null,null,null,null,{"$f":"B20","v":"Umverteilungseinkommensstützung"},{"$f":"D20","v":0},{"$f":"E20","v":0},{"$f":"F20","v":0},{"$f":"G20","v":0},{"$f":"H20","v":0}]
[null,null,null,null,null,null,null,null,null,null,{"$f":"B21","v":"Junglandwirte-Prämie"},{"$f":"D22","v":0},{"$f":"E22","v":0},{"$f":"F22","v":0},{"$f":"G22","v":0},{"$f":"H22","v":0}]
[null,null,null,null,null,null,null,null,null,null,{"$f":"B27","v":"gekoppelte Einkommensstützung"},{"$f":"D27","v":0},{"$f":"E27","v":0},{"$f":"F27","v":0},{"$f":"G27","v":0},{"$f":"H27","v":0}]
[null,null,null,null,null,null,null,null,null,null,"Summe Direktzahlungen abzgl. Kosten Konditionalität",{"$f":"D28","v":0},{"$f":"SUM(M90:M93)-$N$11","v":0},{"$f":"SUM(N90:N93)-$N$11","v":0},{"$f":"SUM(O90:O93)-$N$11","v":0},{"$f":"SUM(P90:P93)-$N$11","v":0}]

{"sheet":"Ökoregelungen","index":2,"n_rows":62,"n_cols":11,"rows_kept":62,"cut":false,"hidden":false,"merged":[[4,1,7,1],[12,1,14,1],[1,7,1,10],[3,7,3,9]]}
[]
[null,"Freiwillige Öko-Regelungen: Zahlungen und Kostenansätze",null,null,null,null,null,"Beträge für das Jahr 2023"]
[null,null,null,null,null,null,null,"Zahlung","Kosten","Überschuss","Überschuss"]
[null,null,null,null,null,null,null,"in €/ha",null,null,"gesamt (€)"]
[null,"(1) Bio- diversität","1a  -  Aufstockung nichtproduktives AL",0,"% AL",{"$f":"D5*Direktzahlungen!C3/100","v":0},"ha",{"$f":"Rech_öko!H6","v":0},0,{"$f":"H5-I5","v":0},{"$f":"(H5-I5)*F5","v":0}]
[null,null,"1b  -  Blühflächen/-streifen auf AL nach 1a",0,"ha",{"$f":"IF(D6<0.1,0,MIN(D6,F5))","v":0},"ha",150,0,{"$f":"H6-I6","v":150},0]
[null,null,"1c  -  Blühflächen/-streifen auf DK-Fläche",0,"ha",{"$f":"MIN(D7,Direktzahlungen!C8)","v":0},"ha",150,0,150,0]
[null,null,"1d  -  Altgrasflächen/-streifen auf DGL",0,"% DGL",{"$f":"IF(D8*Direktzahlungen!C7/100<0.1,0,D8*Direktzahlungen!C7/100)","v":0},"ha",{"$f":"Rech_öko!H12","v":0},0,0,0]
[null,"(2)    Vielfältige Kulturen im Ackerbau ",null,"nein",null,{"$f":"IF(D9=\"nein\",0,Direktzahlungen!C3)","v":0},"ha",45,0,45,0]
[null,"(3)    Agroforstsysteme auf AL und DGL",null,0,"ha",{"$f":"MIN(D10,Direktzahlungen!C3+Direktzahlungen!C7)","v":0},"ha",60,0,60,0]
[null,"(4)    Extensivierung DGL insges.",null,"nein",null,{"$f":"IF(D11=\"nein\",0,Direktzahlungen!C7)","v":0},"ha",115,0,115,0]
[null,"(5)    4-Kennarten DGL",null,0,"ha",{"$f":"MIN(D12,Direktzahlungen!C7)","v":0},"ha",240,0,240,0]
[null,"(6) PSM-Verzicht","auf Sommerungen",0,"ha",{"$f":"IF(Direktzahlungen!H7=\"ja\",0,MIN(D13,Direktzahlungen!C3-Direktzahlungen!C5-MAX((Direktzahlungen!L9-F5),Direktzahlungen!C6)))","v":0},"ha",130,0,130,0]
[null,null,"auf Ackerfutter",0,"ha",{"$f":"IF(Direktzahlungen!H7=\"ja\",0,MIN(D14,Direktzahlungen!C3-F13))","v":0},"ha",50,0,50,0]
[null,null,"auf Dauerkulturen",0,"ha",{"$f":"IF(Direktzahlungen!H7=\"ja\",0,MIN(Direktzahlungen!C8,Ökoregelungen!D15))","v":0},"ha",130,0,130,0]
[null,"(7)    Natura 2000 angepasste Bewirtschaftung",null,null,null,{"$f":"Direktzahlungen!C10","v":0},"ha",40,0,40,0]
[null,"Summen aus Inanspruchnahme der ÖR-Maßnahmen",null,null,null,null,null,null,null,null,{"$f":"SUM(K5:K16)","v":0}]
[]
[]
[]
[]
[]
[]
[]
[]
[]
[]
[]
[]
[]
[]
[]
[]
[]
[]
[]
[]
[]
[]
[]
[]
[]
[]
[]
[]
[]
[]
[]
[]
[]
[]
[]
[]
[]
[null,null,null,"Zahlung (€)","Kostenansatz (€)","Überschuss (€)"]
[null,null,"Biodiversität",{"$f":"SUMPRODUCT($F5:$F8,H5:H8)","v":0},{"$f":"-SUMPRODUCT($F5:$F8,I5:I8)","v":0},{"$f":"D56+E56","v":0}]
[null,null,"Vielfältige Kulturen im Ackerbau ",{"$f":"SUMPRODUCT($F9:$F9,H9:H9)","v":0},{"$f":"-SUMPRODUCT($F9:$F9,I9:I9)","v":0},{"$f":"D57+E57","v":0}]
[null,null,"Agroforstsysteme auf AL und DGL",{"$f":"SUMPRODUCT($F10:$F10,H10:H10)","v":0},{"$f":"-SUMPRODUCT($F10:$F10,I10:I10)","v":0},0]
[null,null,"Extensivierung DGL insges.",{"$f":"SUMPRODUCT($F11:$F11,H11:H11)","v":0},{"$f":"-SUMPRODUCT($F11:$F11,I11:I11)","v":0},0]
[null,null,"4-Kennarten DGL",{"$f":"SUMPRODUCT($F12:$F12,H12:H12)","v":0},{"$f":"-SUMPRODUCT($F12:$F12,I12:I12)","v":0},0]
[null,null,"PSM-Verzicht",{"$f":"SUMPRODUCT($F13:$F15,H13:H15)","v":0},{"$f":"-SUMPRODUCT($F13:$F13,I13:I13)","v":0},0]
[null,null,"Schutzgebietsbonus Natura 2000",{"$f":"SUMPRODUCT($F16:$F16,H16:H16)","v":0},{"$f":"-SUMPRODUCT($F16:$F16,I16:I16)","v":0},0]

{"sheet":"Formeln","index":3,"n_rows":482,"n_cols":17,"rows_kept":482,"cut":false,"hidden":false,"merged":[[20,16,47,21],[51,16,78,21],[82,16,109,21],[113,16,140,21],[144,16,171,21],[361,16,388,21],[392,16,419,21],[423,16,450,21],[454,16,481,21],[175,16,202,21],[206,16,233,21],[237,16,264,21],[268,16,295,21],[299,16,326,21],[330,16,357,21]]}
[null,"Formel-Nr","Fenster (Formel)","Zeile (Beginn Formel)","Spalte (beginn Formel)","IDB","F_FB","Z_FB","S_FB"]
[null,3,4,82,3,1,2,9,13,"Kosten","GLÖZ 8    Brache (4% des AL)"]
[null,1,4,{"$f":"ROW(Formeln!C20)","v":20},{"$f":"COLUMN(Formeln!C20)","v":3},1,3,{"$f":"ROW(Ökoregelungen!I5)","v":5},{"$f":"COLUMN(Ökoregelungen!I5)","v":9},"Kosten",{"$f":"Formeln!M20","v":"1a  -  Aufstockung nichtproduktives AL"}]
[null,2,4,{"$f":"ROW(Formeln!C51)","v":51},{"$f":"COLUMN(Formeln!C51)","v":3},0,2,{"$f":"ROW(Direktzahlungen!L9)","v":9},{"$f":"COLUMN(Direktzahlungen!L9)","v":12},"Fläche",{"$f":"Direktzahlungen!K9","v":"GLÖZ 8    Brache (4% des AL)"}]
[null,3,4,{"$f":"ROW(Formeln!C82)","v":82},{"$f":"COLUMN(Formeln!C82)","v":3},1,2,{"$f":"ROW(Direktzahlungen!M9)","v":9},{"$f":"COLUMN(Direktzahlungen!M9)","v":13},"Kosten",{"$f":"Direktzahlungen!K9","v":"GLÖZ 8    Brache (4% des AL)"}]
[null,4,4,{"$f":"ROW(Formeln!C113)","v":113},{"$f":"COLUMN(Formeln!C113)","v":3},1,3,{"$f":"ROW(Ökoregelungen!I6)","v":6},{"$f":"COLUMN(Ökoregelungen!I6)","v":9},"Kosten",{"$f":"Ökoregelungen!C6","v":"1b  -  Blühflächen/-streifen auf AL nach 1a"}]
[null,5,4,{"$f":"ROW(Formeln!C144)","v":144},{"$f":"COLUMN(Formeln!C144)","v":3},1,2,{"$f":"ROW(Direktzahlungen!L8)","v":8},{"$f":"COLUMN(Direktzahlungen!L8)","v":12},{"$f":"M144","v":"GLÖZ 7    Fruchtwechsel auf Ackerland"}]
[null,6,4,{"$f":"ROW(Formeln!C175)","v":175},{"$f":"COLUMN(Formeln!C175)","v":3},1,2,{"$f":"ROW(Direktzahlungen!M5)","v":5},{"$f":"COLUMN(Direktzahlungen!M5)","v":13},{"$f":"M175","v":"GLÖZ 4    Pufferstreifen entlang von Wasserläufen"}]
[null,7,4,{"$f":"ROW(C206)","v":206},{"$f":"COLUMN(Formeln!C56)","v":3},1,2,{"$f":"ROW($A$1)","v":1},{"$f":"COLUMN($A$1)","v":1}]
[null,{"$f":"B9+1","v":8},4,{"$f":"ROW(C237)","v":237},{"$f":"COLUMN(Formeln!C57)","v":3},1,2,1,1]
[null,{"$f":"B10+1","v":9},4,{"$f":"ROW(C268)","v":268},{"$f":"COLUMN(Formeln!C58)","v":3},1,2,1,1]
[null,10,4,{"$f":"ROW(C299)","v":299},{"$f":"COLUMN(Formeln!C59)","v":3},1,2,1,1]
[null,11,4,{"$f":"ROW(C330)","v":330},{"$f":"COLUMN(Formeln!C60)","v":3},1,2,1,1]
[null,12,4,{"$f":"ROW(C361)","v":361},{"$f":"COLUMN(Formeln!C61)","v":3},1,2,1,1]
[null,13,4,{"$f":"ROW(C392)","v":392},{"$f":"COLUMN(Formeln!C62)","v":3},1,2,1,1]
[null,14,4,{"$f":"ROW(C423)","v":423},{"$f":"COLUMN(Formeln!C63)","v":3},1,2,1,1]
[null,15,4,{"$f":"ROW(C454)","v":454},{"$f":"COLUMN(Formeln!C64)","v":3},1,2,1,1]
[]
[]
["Formel 1",null,"Bezugszelle für Fenster \"Sonst\"","e=Ergebnis in Formular","b=Berechnungszelle","v=visible",null,null,null,null,null,null,"1a  -  Aufstockung nichtproduktives AL",null,null,null,"Beschreibung"]
[null,null,null,"e",null,"v",null,null,null,null,null,null,null,"Entgangener Deckungsbeitrag (€/ha)",0,null,"Die Kosten müssen betriebsindividuell festgelegt werden. Bei der Stilllegung von AL ist der entgangene Deckungsbeitrag (zu berechnen z.B. mit dem Internet-DB) als Kosten anzusetzen. Dabei wird (solange pflanzenbaulich möglich) der Anbau der Kulturen mit dem niedrigsten Deckungsbeitrag eingeschränkt."]
[null,null,null,null,null,"n","_____________________________________________________________________________________________________"]
[null,null,null,null,null,"v",null,null,null,null,null,null,"+","Kosten für Mulchen (€/ha)",0]
[null,null,null,null,null,"v","_____________________________________________________________________________________________________"]
[null,null,null,"e","b","v",null,null,null,null,null,null,"=","Kosten gesamt (€/ha)",{"$f":"O21+O23","v":0}]
[null,null,null,null,null,"n","_____________________________________________________________________________________________________"]
[null,null,null,null,null,"n",null,null,null,null,null,null,null,null,0]
[null,null,null,null,null,"n","_____________________________________________________________________________________________________"]
[null,null,null,null,null,"n",null,null,null,null,null,null,null,null,0]
[null,null,null,null,null,"n","_____________________________________________________________________________________________________"]
[null,null,null,null,null,"n",null,null,null,null,null,null,null,null,0]
[null,null,null,null,null,"n","_____________________________________________________________________________________________________"]
[null,null,null,null,null,"n",null,null,null,null,null,null,null,null,0]
[null,null,null,null,null,"n","_____________________________________________________________________________________________________"]
[null,null,null,null,null,"n",null,null,null,null,null,null,null,null,0]
[null,null,null,null,null,"n","_____________________________________________________________________________________________________"]
[null,null,null,null,null,"n",null,null,null,null,null,null,null,null,0]
[null,null,null,null,null,"n","_____________________________________________________________________________________________________"]
[null,null,null,null,null,"n",null,null,null,null,null,null,null,null,0]
[null,null,null,null,null,"n","_____________________________________________________________________________________________________"]
[null,null,null,null,null,"n",null,null,null,null,null,null,null,null,0]
[null,null,null,null,null,"n","_____________________________________________________________________________________________________"]
[null,null,null,null,null,"n",null,null,null,null,null,null,null,null,0]
[null,null,null,null,null,"n","_____________________________________________________________________________________________________"]
[null,null,null,null,null,"n",null,null,null,null,null,null,null,null,0]
[null,null,null,null,null,"n","_____________________________________________________________________________________________________"]
[null,null,null,null,null,"n",null,null,null,null,null,null,null,null,0]
[null,null,null,null,null,"n","_____________________________________________________________________________________________________"]
[]
[]
["Formel 2",null,"Bezugszelle für Fenster \"Sonst\"","e=Ergebnis in Formular","b=Berechnungszelle","v=visible",null,null,null,null,null,null,"Fläche - GLÖZ 8    Brache (4% des AL)",null,null,null,"Beschreibung"]
[null,null,null,null,"b","v",null,null,null,null,null,null,null,"Ackerland (AL) (ha)",{"$f":"Direktzahlungen!$C$3","v":0},null,"Mindestumfang Brache (ha) =\nWenn AL <= 10 ha oder ( LF <= 50 ha und (DG + Gras- und Grünfutterpflanzen + Brachen + Leguminosen) / LF >= 75%) \ndann 0 ha; \nansonsten (AL (ha) - LE (ha)) * 4% "]
[null,null,null,null,null,"n","_____________________________________________________________________________________________________"]
[null,null,null,null,"b","v",null,null,null,null,null,null,null,"Dauergrünland (DG) (ha)",{"$f":"Direktzahlungen!$C$7","v":0}]
[null,null,null,null,null,"n","_____________________________________________________________________________________________________"]
[null,null,null,null,null,"v",null,null,null,null,null,null,null,"Gras- und Grünfutterpflanzen + Brachen + Leguminosen (ha)",10]
[null,null,null,null,null,"n","_____________________________________________________________________________________________________"]
[null,null,null,null,"b","v",null,null,null,null,null,null,null,"LF (ha)",{"$f":"Direktzahlungen!$C$9","v":0}]
[null,null,null,null,null,"n","_____________________________________________________________________________________________________"]
[null,null,null,null,"b","v",null,null,null,null,null,null,null,"LE u. Pufferstreifen auf AL (ha)",{"$f":"Direktzahlungen!$C$6","v":0}]
[null,null,null,null,null,"n","_____________________________________________________________________________________________________"]
[null,null,null,null,"b","v",null,null,null,null,null,null,null,"Mindestumfang Brache (ha)",{"$f":"IF(O58=0,0,IF(OR(O52<=10,AND(O58<=50,(O54+O56)/O58>=0.75)),0,(O52-O60)*0.04))","v":0}]
[null,null,null,null,null,"n","_____________________________________________________________________________________________________"]
[null,null,null,null,"b","n",null,null,null,null,null,null,null,null,0]
[null,null,null,null,null,"n","_____________________________________________________________________________________________________"]
[null,null,null,null,"b","n"]
[null,null,null,null,null,"n","_____________________________________________________________________________________________________"]
[null,null,null,null,"b","n"]
[null,null,null,null,null,"n","_____________________________________________________________________________________________________"]
[null,null,null,null,"b","n"]
[null,null,null,null,null,"n","_____________________________________________________________________________________________________"]
[null,null,null,null,"b","n",null,null,null,null,null,null,null,null,0]
[null,null,null,null,null,"n","_____________________________________________________________________________________________________"]
[null,null,null,null,"b","n",null,null,null,null,null,null,null,null,0]
[null,null,null,null,null,"n","_____________________________________________________________________________________________________"]
[null,null,null,null,"b","n",null,null,null,null,null,null,null,null,0]
[null,null,null,null,null,"n","_____________________________________________________________________________________________________"]
[null,null,null,null,"b","n",null,null,null,null,null,null,null,null,0]
[null,null,null,null,null,"n","_____________________________________________________________________________________________________"]
[]
[]
["Formel 3",null,"Bezugszelle für Fenster \"Sonst\"","e=Ergebnis in Formular","b=Berechnungszelle","v=visible",null,null,null,null,null,null,"Kosten - GLÖZ 8    Brache (4% des AL)",null,null,null,"Beschreibung"]
[null,null,null,"e",null,"v",null,null,null,null,null,null,null,"Entgangener Deckungsbeitrag (€/ha)",678,null,"GLÖZ 8: 4% des AL müssen stillgelegt werden. Dabei können LE auf AL und „AL Pufferstreifen“ berücksichtigt werden. \n\nAls Anpassungsreaktion werden i.d.R „zuerst“ LE und Pufferstreifen aus der Nutzung genommen. Bei LE entstehen keine Kosten. Solange keine Verwendung des Aufwuchses auf dem Pufferstreifen (Futter) möglich ist (Marktfruchtbaubetriebe) sind auch hier keine Kosten anzusetzen.  Bei Pufferstreifen die zur Futtergewinnung genutzt werden, sind z.B. Kosten der Ersatzfutterbeschaffung anzusetzen (vgl. Anmerkung zu GLÖZ 4). Da in der Regel mit sehr niedrigen Futtererträgen zu rechnen ist, sind die Kosten der Stilllegung von Pufferstreifen auch hier i.d.R sehr gering. \n\nBei der Stilllegung von AL ist der entgangene Deckungsbeitrag (zu berechnen z.B. mit dem Idb) als Kosten anzusetzen. Dabei wird (solange pflanzenbaulich möglich) der Anbau der Kulturen mit dem niedrigsten Deckungsbeitrag eingeschränkt."]
[null,null,null,null,null,"n","_____________________________________________________________________________________________________"]
[null,null,null,null,null,"v",null,null,null,null,null,null,"+","Kosten für Mulchen (€/ha)",34]
[null,null,null,null,null,"v","_____________________________________________________________________________________________________"]
[null,null,null,"e","b","v",null,null,null,null,null,null,"=","Kosten gesamt (€/ha)",{"$f":"O83+O85","v":712}]
[null,null,null,null,null,"n","_____________________________________________________________________________________________________"]
[null,null,null,null,null,"n",null,null,null,null,null,null,null,null,0]
[null,null,null,null,null,"n"]
[null,null,null,null,null,"n",null,null,null,null,null,null,null,null,0]
[null,null,null,null,null,"n"]
[null,null,null,null,null,"n",null,null,null,null,null,null,null,null,0,")"]
[null,null,null,null,null,"n"]
[null,null,null,null,null,"n",null,null,null,null,null,null,null,null,0]
[null,null,null,null,null,"n"]
[null,null,null,null,null,"n",null,null,null,null,null,null,null,null,0]
[null,null,null,null,null,"n"]
[null,null,null,null,null,"n",null,null,null,null,null,null,null,null,0]
[null,null,null,null,null,"n"]
[null,null,null,null,null,"n",null,null,null,null,null,null,null,null,0]
[null,null,null,null,null,"n"]
[null,null,null,null,null,"n",null,null,null,null,null,null,null,null,0]
[null,null,null,null,null,"n"]
[null,null,null,null,null,"n",null,null,null,null,null,null,null,null,0]
[null,null,null,null,null,"n"]
[null,null,null,null,null,"n",null,null,null,null,null,null,null,null,0]
[null,null,null,null,null,"n"]
[null,null,null,null,null,"n",null,null,null,null,null,null,null,null,0]
[null,null,null,null,null,"n"]
[]
[]
["Formel 4",null,"Bezugszelle für Fenster \"Sonst\"","e=Ergebnis in Formular","b=Berechnungszelle","v=visible",null,null,null,null,null,null,{"$f":"Ökoregelungen!C6","v":"1b  -  Blühflächen/-streifen auf AL nach 1a"},null,null,null,"Beschreibung"]
[null,null,null,null,null,"v",null,null,null,null,null,null,null,"Etablierungskosten",0,null,"Die Kosten müssen betriebsindividuell festgelegt werden, je ha kann mit Kosten von 120 bis 180 EUR gerechnet werden."]
[null,null,null,null,null,"n","_____________________________________________________________________________________________________"]
[null,null,null,null,null,"v",null,null,null,null,null,null,"/","Nutzungsdauer",0]
[null,null,null,null,null,"v","_____________________________________________________________________________________________________"]
[null,null,null,"e","b","v",null,null,null,null,null,null,"=","Kosten gesamt",{"$f":"IF(O116=0,0,O114/O116)","v":0}]
[null,null,null,null,null,"n","_____________________________________________________________________________________________________"]
[null,null,null,null,null,"n",null,null,null,null,null,null,null,null,0]
[null,null,null,null,null,"n","_____________________________________________________________________________________________________"]
[null,null,null,null,null,"n",null,null,null,null,null,null,null,null,0]
[null,null,null,null,null,"n","_____________________________________________________________________________________________________"]
[null,null,null,null,null,"n",null,null,null,null,null,null,null,null,0]
[null,null,null,null,null,"n","_____________________________________________________________________________________________________"]
[null,null,null,null,null,"n",null,null,null,null,null,null,null,null,0]
[null,null,null,null,null,"n","_____________________________________________________________________________________________________"]
[null,null,null,null,null,"n",null,null,null,null,null,null,null,null,0]
[null,null,null,null,null,"n","_____________________________________________________________________________________________________"]
[null,null,null,null,null,"n",null,null,null,null,null,null,null,null,0]
[null,null,null,null,null,"n","_____________________________________________________________________________________________________"]
[null,null,null,null,null,"n",null,null,null,null,null,null,null,null,0]
[null,null,null,null,null,"n","_____________________________________________________________________________________________________"]
[null,null,null,null,null,"n",null,null,null,null,null,null,null,null,0]
[null,null,null,null,null,"n","_____________________________________________________________________________________________________"]
[null,null,null,null,null,"n",null,null,null,null,null,null,null,null,0]
[null,null,null,null,null,"n","_____________________________________________________________________________________________________"]
[null,null,null,null,null,"n",null,null,null,null,null,null,null,null,0]
[null,null,null,null,null,"n","_____________________________________________________________________________________________________"]
[null,null,null,null,null,"n",null,null,null,null,null,null,null,null,0]
[null,null,null,null,null,"n","_____________________________________________________________________________________________________"]
[]
[]
["Formel 5",null,"Bezugszelle für Fenster \"Sonst\"","e=Ergebnis in Formular","b=Berechnungszelle","v=visible",null,null,null,null,null,null,{"$f":"Direktzahlungen!K8","v":"GLÖZ 7    Fruchtwechsel auf Ackerland"},null,null,null,"Beschreibung"]
[null,null,null,null,"b","v",null,null,null,null,null,null,null,"Ökolandbau",{"$f":"Direktzahlungen!H7","v":"nein"},null,"Mindestumfang Fruchtwechsel auf AL (ha) =\nWenn Ökolandbau = ja \noder AL <= 10 ha \noder ( LF <= 50 ha und (DG + Gras- und Grünfutterpflanzen + Brachen + Leguminosen) / LF >= 75%) \ndann 0 ha; \nansonsten AL ohne Fruchtwechsel (ha) "]
[null,null,null,null,null,"n","_____________________________________________________________________________________________________"]
[null,null,null,null,"b","v",null,null,null,null,null,null,null,"Ackerland (AL) (ha)",{"$f":"Direktzahlungen!$C$3","v":0}]
[null,null,null,null,null,"n","_____________________________________________________________________________________________________"]
[null,null,null,null,null,"v",null,null,null,null,null,null,null,"Ackerland ohne Fruchtwechsel (ha)",12]
[null,null,null,null,null,"n","_____________________________________________________________________________________________________"]
[null,null,null,null,"b","v",null,null,null,null,null,null,null,"Dauergrünland (DG) (ha)",{"$f":"Direktzahlungen!$C$7","v":0}]
[null,null,null,null,null,"n","_____________________________________________________________________________________________________"]
[null,null,null,null,null,"v",null,null,null,null,null,null,null,"Gras- und Grünfutterpflanzen + Brachen + Leguminosen (ha)",3]
[null,null,null,null,null,"n","_____________________________________________________________________________________________________"]
[null,null,null,null,"b","v",null,null,null,null,null,null,null,"LF (ha)",{"$f":"Direktzahlungen!$C$9","v":0}]
[null,null,null,null,null,"n","_____________________________________________________________________________________________________"]
[null,null,null,null,"b","v",null,null,null,null,null,null,null,"LE u. Pufferstreifen auf AL (ha)",{"$f":"Direktzahlungen!$C$6","v":0}]
[null,null,null,null,null,"n","_____________________________________________________________________________________________________"]
[null,null,null,"e","b","v",null,null,null,null,null,null,null,"Mindestumfang Fruchtwechsel auf AL (ha)",{"$f":"IF(O155=0,0,IF(OR(O145=\"ja\",O147<=10,AND(O155<=50,(O151+O153)/O155>=0.75)),0,(O149)))","v":0}]
[null,null,null,null,null,"n","_____________________________________________________________________________________________________"]
[null,null,null,null,"b","n"]
[null,null,null,null,null,"n","_____________________________________________________________________________________________________"]
[null,null,null,null,"b","n"]
[null,null,null,null,null,"n","_____________________________________________________________________________________________________"]
[null,null,null,null,"b","n"]
[null,null,null,null,null,"n","_____________________________________________________________________________________________________"]
[null,null,null,null,"b","n"]
[null,null,null,null,null,"n","_____________________________________________________________________________________________________"]
[null,null,null,null,"b","n"]
[null,null,null,null,null,"n","_____________________________________________________________________________________________________"]
[null,null,null,null,"b","n"]
[null,null,null,null,null,"n","_____________________________________________________________________________________________________"]
[]
[]
["Formel 6",null,"Bezugszelle für Fenster \"Sonst\"","e=Ergebnis in Formular","b=Berechnungszelle","v=visible",null,null,null,null,null,null,"GLÖZ 4    Pufferstreifen entlang von Wasserläufen",null,null,null,"Beschreibung"]
[null,null,null,null,null,"v",null,null,null,null,null,null,null,"Energieertrag bisherige Intensität (MJ NEL/ha)",50386,null,"GLÖZ 4: Ist in Bayern nur für Grünland und Ackerfutterbau (ohne Mais, Futterrüben etc. von Bedeutung) relevant. \n\nBei Grünland können die Kosten je ha z.B. mit dem Internet-DB bestimmt werden: Vergleich der Kosten und Erträge (z.B. in MJ NEL) einer Wiese mit betriebsüblicher Intensität und einer ungedüngten Wiese (Pufferstreifen). \n\nDie Kosten der Extensivierung ergeben sich aus dem bewerteten Futterertragsrückgang (meistens wird dieser durch KF ausgeglichen werden können, da i.d.R. nur ein geringer Flächenanteil betroffen sein wird, so dass eine Erhöhung des KF-Anteils in der Ration ernährungsphysiologisch möglich sein müsste) und den eingesparten variablen Kosten durch die extensivere Nutzung auf dem Pufferstreifen.\n\nBemerkung: Statt der Energieeinheit MJ NEL kann in allen Feldern auch die Einheit MJ ME verwendet werden."]
[null,null,null,null,null,"n","_____________________________________________________________________________________________________"]
[null,null,null,null,null,"v",null,null,null,null,null,null,null,"var. Kosten bisherige Intensität (€/ha)",1050]
[null,null,null,null,null,"v","_____________________________________________________________________________________________________"]
[null,null,null,null,null,"v",null,null,null,null,null,null,null,"Energieertrag Pufferstreifen (MJ NEL/ha)",31152]
[null,null,null,null,null,"v","_____________________________________________________________________________________________________"]
[null,null,null,null,null,"v",null,null,null,null,null,null,null,"var. Kosten Pufferstreifen (€/ha)",536]
[null,null,null,null,null,"n","_____________________________________________________________________________________________________"]
[null,null,null,null,"b","v",null,null,null,null,null,null,null,"Differenz Energieertrag (MJ NEL/ha)",{"$f":"O180-O176","v":-19234}]
[null,null,null,null,null,"n","_____________________________________________________________________________________________________"]
[null,null,null,null,"b","v",null,null,null,null,null,null,null,"Differenz var. Kosten (€/ha)",{"$f":"O182-O178","v":-514}]
[null,null,null,null,null,"n","_____________________________________________________________________________________________________"]
[null,null,null,null,null,"v",null,null,null,null,null,null,null,"Energiedichte Kraftfutter (MJ NEL/kg FM)",7.2]
[null,null,null,null,null,"n","_____________________________________________________________________________________________________"]
[null,null,null,null,"b","v",null,null,null,null,null,null,null,"Zusätzlicher Einsatz Kraftfutter (dt FM)",{"$f":"-ROUND(O184/O188/100,2)","v":26.71}]
[null,null,null,null,null,"v","_____________________________________________________________________________________________________"]
[null,null,null,null,null,"v",null,null,null,null,null,null,null,"Kosten Kraftfutter (€/dt FM)",31]
[null,null,null,null,null,"v","_____________________________________________________________________________________________________"]
[null,null,null,null,"b","v",null,null,null,null,null,null,null,"Kosten durch zusätzlichen Kraftfuttereinsatz (€/ha)",{"$f":"ROUND(O190*O192,0)","v":828}]
[null,null,null,null,null,"n","_____________________________________________________________________________________________________"]
[null,null,null,null,"b","v",null,null,null,null,null,null,null,"Eingesparte var. Kosten Pufferstreifen (€/ha)",{"$f":"-O186","v":514}]
[null,null,null,null,null,"v","_____________________________________________________________________________________________________"]
[null,null,null,"e","b","v",null,null,null,null,null,null,null,"Zusätzliche Kosten durch Pufferstreifen (€/ha)",{"$f":"O194-O196","v":314}]
[null,null,null,null,null,"n","_____________________________________________________________________________________________________"]
[null,null,null,null,"b","n"]
[null,null,null,null,null,"n","_____________________________________________________________________________________________________"]
[null,null,null,null,"b","n",null,null,null,null,null,null,"(",null,null,")"]
[null,null,null,null,null,"n","_____________________________________________________________________________________________________"]
[]
[]
["Formel 7",null,"Bezugszelle für Fenster \"Sonst\"","e=Ergebnis in Formular","b=Berechnungszelle","v=visible",null,null,null,null,null,null,"Formel 7",null,null,null,"Beschreibung"]
[null,null,null,null,"b","v"]
[null,null,null,null,null,"n","_____________________________________________________________________________________________________"]
[null,null,null,"e","b","v"]
[null,null,null,null,null,"n","_____________________________________________________________________________________________________"]
[null,null,null,null,"b","n"]
[null,null,null,null,null,"n","_____________________________________________________________________________________________________"]
[null,null,null,null,"b","n"]
[null,null,null,null,null,"n","_____________________________________________________________________________________________________"]
[null,null,null,null,"b","n"]
[null,null,null,null,null,"n","_____________________________________________________________________________________________________"]
[null,null,null,null,"b","n",null,null,null,null,null,null,null,null,null,")"]
[null,null,null,null,null,"n","_____________________________________________________________________________________________________"]
[null,null,null,null,"b","n"]
[null,null,null,null,null,"n","_____________________________________________________________________________________________________"]
[null,null,null,null,"b","n"]
[null,null,null,null,null,"n","_____________________________________________________________________________________________________"]
[null,null,null,null,"b","n"]
[null,null,null,null,null,"n","_____________________________________________________________________________________________________"]
[null,null,null,null,"b","n"]
[null,null,null,null,null,"n","_____________________________________________________________________________________________________"]
[null,null,null,null,"b","n"]
[null,null,null,null,null,"n","_____________________________________________________________________________________________________"]
[null,null,null,null,"b","n"]
[null,null,null,null,null,"n","_____________________________________________________________________________________________________"]
[null,null,null,null,"b","n"]
[null,null,null,null,null,"n","_____________________________________________________________________________________________________"]
[null,null,null,null,"b","n"]
[null,null,null,null,null,"n","_____________________________________________________________________________________________________"]
[]
[]
["Formel 8",null,"Bezugszelle für Fenster \"Sonst\"","e=Ergebnis in Formular","b=Berechnungszelle","v=visible",null,null,null,null,null,null,{"$f":"A237","v":"Formel 8"},null,null,null,"Beschreibung"]
[null,null,null,null,"b","v"]
[null,null,null,null,null,"n","_____________________________________________________________________________________________________"]
[null,null,null,"e","b","v"]
[null,null,null,null,null,"n","_____________________________________________________________________________________________________"]
[null,null,null,null,"b","n"]
[null,null,null,null,null,"n","_____________________________________________________________________________________________________"]
[null,null,null,null,"b","n"]
[null,null,null,null,null,"n","_____________________________________________________________________________________________________"]
[null,null,null,null,"b","n"]
[null,null,null,null,null,"n","_____________________________________________________________________________________________________"]
[null,null,null,null,"b","n",null,null,null,null,null,null,null,null,null,")"]
[null,null,null,null,null,"n","_____________________________________________________________________________________________________"]
[null,null,null,null,"b","n"]
[null,null,null,null,null,"n","_____________________________________________________________________________________________________"]
[null,null,null,null,"b","n"]
[null,null,null,null,null,"n","_____________________________________________________________________________________________________"]
[null,null,null,null,"b","n"]
[null,null,null,null,null,"n","_____________________________________________________________________________________________________"]
[null,null,null,null,"b","n"]
[null,null,null,null,null,"n","_____________________________________________________________________________________________________"]
[null,null,null,null,"b","n"]
[null,null,null,null,null,"n","_____________________________________________________________________________________________________"]
[null,null,null,null,"b","n"]
[null,null,null,null,null,"n","_____________________________________________________________________________________________________"]
[null,null,null,null,"b","n"]
[null,null,null,null,null,"n","_____________________________________________________________________________________________________"]
[null,null,null,null,"b","n"]
[null,null,null,null,null,"n","_____________________________________________________________________________________________________"]
[]
[]
["Formel 9",null,"Bezugszelle für Fenster \"Sonst\"","e=Ergebnis in Formular","b=Berechnungszelle","v=visible",null,null,null,null,null,null,{"$f":"A268","v":"Formel 9"},null,null,null,"Beschreibung"]
[null,null,null,null,"b","v"]
[null,null,null,null,null,"n","_____________________________________________________________________________________________________"]
[null,null,null,"e","b","v"]
[null,null,null,null,null,"n","_____________________________________________________________________________________________________"]
[null,null,null,null,"b","n"]
[null,null,null,null,null,"n","_____________________________________________________________________________________________________"]
[null,null,null,null,"b","n"]
[null,null,null,null,null,"n","_____________________________________________________________________________________________________"]
[null,null,null,null,"b","n"]
[null,null,null,null,null,"n","_____________________________________________________________________________________________________"]
[null,null,null,null,"b","n",null,null,null,null,null,null,null,null,null,")"]
[null,null,null,null,null,"n","_____________________________________________________________________________________________________"]
[null,null,null,null,"b","n"]
[null,null,null,null,null,"n","_____________________________________________________________________________________________________"]
[null,null,null,null,"b","n"]
[null,null,null,null,null,"n","_____________________________________________________________________________________________________"]
[null,null,null,null,"b","n"]
[null,null,null,null,null,"n","_____________________________________________________________________________________________________"]
[null,null,null,null,"b","n"]
[null,null,null,null,null,"n","_____________________________________________________________________________________________________"]
[null,null,null,null,"b","n"]
[null,null,null,null,null,"n","_____________________________________________________________________________________________________"]
[null,null,null,null,"b","n"]
[null,null,null,null,null,"n","_____________________________________________________________________________________________________"]
[null,null,null,null,"b","n"]
[null,null,null,null,null,"n","_____________________________________________________________________________________________________"]
[null,null,null,null,"b","n"]
[null,null,null,null,null,"n","_____________________________________________________________________________________________________"]
[]
[]
["Formel 10",null,"Bezugszelle für Fenster \"Sonst\"","e=Ergebnis in Formular","b=Berechnungszelle","v=visible",null,null,null,null,null,null,{"$f":"A299","v":"Formel 10"},null,null,null,"Beschreibung"]
[null,null,null,null,"b","v"]
[null,null,null,null,null,"n","_____________________________________________________________________________________________________"]
[null,null,null,"e","b","v"]
[null,null,null,null,null,"n","_____________________________________________________________________________________________________"]
[null,null,null,null,"b","n"]
[null,null,null,null,null,"n","_____________________________________________________________________________________________________"]
[null,null,null,null,"b","n"]
[null,null,null,null,null,"n","_____________________________________________________________________________________________________"]
[null,null,null,null,"b","n"]
[null,null,null,null,null,"n","_____________________________________________________________________________________________________"]
[null,null,null,null,"b","n",null,null,null,null,null,null,null,null,null,")"]
[null,null,null,null,null,"n","_____________________________________________________________________________________________________"]
[null,null,null,null,"b","n"]
[null,null,null,null,null,"n","_____________________________________________________________________________________________________"]
[null,null,null,null,"b","n"]
[null,null,null,null,null,"n","_____________________________________________________________________________________________________"]
[null,null,null,null,"b","n"]
[null,null,null,null,null,"n","_____________________________________________________________________________________________________"]
[null,null,null,null,"b","n"]
[null,null,null,null,null,"n","_____________________________________________________________________________________________________"]
[null,null,null,null,"b","n"]
[null,null,null,null,null,"n","_____________________________________________________________________________________________________"]
[null,null,null,null,"b","n"]
[null,null,null,null,null,"n","_____________________________________________________________________________________________________"]
[null,null,null,null,"b","n"]
[null,null,null,null,null,"n","_____________________________________________________________________________________________________"]
[null,null,null,null,"b","n"]
[null,null,null,null,null,"n","_____________________________________________________________________________________________________"]
[]
[]
["Formel 11",null,"Bezugszelle für Fenster \"Sonst\"","e=Ergebnis in Formular","b=Berechnungszelle","v=visible",null,null,null,null,null,null,{"$f":"A330","v":"Formel 11"},null,null,null,"Beschreibung"]
[null,null,null,null,"b","v"]
[null,null,null,null,null,"n","_____________________________________________________________________________________________________"]
[null,null,null,"e","b","v"]
[null,null,null,null,null,"n","_____________________________________________________________________________________________________"]
[null,null,null,null,"b","n"]
[null,null,null,null,null,"n","_____________________________________________________________________________________________________"]
[null,null,null,null,"b","n"]
[null,null,null,null,null,"n","_____________________________________________________________________________________________________"]
[null,null,null,null,"b","n"]
[null,null,null,null,null,"n","_____________________________________________________________________________________________________"]
[null,null,null,null,"b","n",null,null,null,null,null,null,null,null,null,")"]
[null,null,null,null,null,"n","_____________________________________________________________________________________________________"]
[null,null,null,null,"b","n"]
[null,null,null,null,null,"n","_____________________________________________________________________________________________________"]
[null,null,null,null,"b","n"]
[null,null,null,null,null,"n","_____________________________________________________________________________________________________"]
[null,null,null,null,"b","n"]
[null,null,null,null,null,"n","_____________________________________________________________________________________________________"]
[null,null,null,null,"b","n"]
[null,null,null,null,null,"n","_____________________________________________________________________________________________________"]
[null,null,null,null,"b","n"]
[null,null,null,null,null,"n","_____________________________________________________________________________________________________"]
[null,null,null,null,"b","n"]
[null,null,null,null,null,"n","_____________________________________________________________________________________________________"]
[null,null,null,null,"b","n"]
[null,null,null,null,null,"n","_____________________________________________________________________________________________________"]
[null,null,null,null,"b","n"]
[null,null,null,null,null,"n","_____________________________________________________________________________________________________"]
[]
[]
["Formel 12",null,"Bezugszelle für Fenster \"Sonst\"","e=Ergebnis in Formular","b=Berechnungszelle","v=visible",null,null,null,null,null,null,{"$f":"A361","v":"Formel 12"},null,null,null,"Beschreibung"]
[null,null,null,null,"b","v",null,null,null,null,null,"=","Kennzahl 12"]
[null,null,null,null,null,"n","_____________________________________________________________________________________________________"]
[null,null,null,"e","b","v"]
[null,null,null,null,null,"n","_____________________________________________________________________________________________________"]
[null,null,null,null,"b","n"]
[null,null,null,null,null,"n","_____________________________________________________________________________________________________"]
[null,null,null,null,"b","n"]
[null,null,null,null,null,"n","_____________________________________________________________________________________________________"]
[null,null,null,null,"b","n"]
[null,null,null,null,null,"n","_____________________________________________________________________________________________________"]
[null,null,null,null,"b","n",null,null,null,null,null,null,null,null,null,")"]
[null,null,null,null,null,"n","_____________________________________________________________________________________________________"]
[null,null,null,null,"b","n"]
[null,null,null,null,null,"n","_____________________________________________________________________________________________________"]
[null,null,null,null,"b","n"]
[null,null,null,null,null,"n","_____________________________________________________________________________________________________"]
[null,null,null,null,"b","n"]
[null,null,null,null,null,"n","_____________________________________________________________________________________________________"]
[null,null,null,null,"b","n"]
[null,null,null,null,null,"n","_____________________________________________________________________________________________________"]
[null,null,null,null,"b","n"]
[null,null,null,null,null,"n","_____________________________________________________________________________________________________"]
[null,null,null,null,"b","n"]
[null,null,null,null,null,"n","_____________________________________________________________________________________________________"]
[null,null,null,null,"b","n"]
[null,null,null,null,null,"n","_____________________________________________________________________________________________________"]
[null,null,null,null,"b","n"]
[null,null,null,null,null,"n","_____________________________________________________________________________________________________"]
[]
[]
["Formel 13",null,"Bezugszelle für Fenster \"Sonst\"","e=Ergebnis in Formular","b=Berechnungszelle","v=visible",null,null,null,null,null,null,{"$f":"A392","v":"Formel 13"},null,null,null,"Beschreibung"]
[null,null,null,null,"b","v"]
[null,null,null,null,null,"n","_____________________________________________________________________________________________________"]
[null,null,null,"e","b","v"]
[null,null,null,null,null,"n","_____________________________________________________________________________________________________"]
[null,null,null,null,"b","n"]
[null,null,null,null,null,"n","_____________________________________________________________________________________________________"]
[null,null,null,null,"b","n"]
[null,null,null,null,null,"n","_____________________________________________________________________________________________________"]
[null,null,null,null,"b","n"]
[null,null,null,null,null,"n","_____________________________________________________________________________________________________"]
[null,null,null,null,"b","n",null,null,null,null,null,null,null,null,null,")"]
[null,null,null,null,null,"n","_____________________________________________________________________________________________________"]
[null,null,null,null,"b","n"]
[null,null,null,null,null,"n","_____________________________________________________________________________________________________"]
[null,null,null,null,"b","n"]
[null,null,null,null,null,"n","_____________________________________________________________________________________________________"]
[null,null,null,null,"b","n"]
[null,null,null,null,null,"n","_____________________________________________________________________________________________________"]
[null,null,null,null,"b","n"]
[null,null,null,null,null,"n","_____________________________________________________________________________________________________"]
[null,null,null,null,"b","n"]
[null,null,null,null,null,"n","_____________________________________________________________________________________________________"]
[null,null,null,null,"b","n"]
[null,null,null,null,null,"n","_____________________________________________________________________________________________________"]
[null,null,null,null,"b","n"]
[null,null,null,null,null,"n","_____________________________________________________________________________________________________"]
[null,null,null,null,"b","n"]
[null,null,null,null,null,"n","_____________________________________________________________________________________________________"]
[]
[]
["Formel 14",null,"Bezugszelle für Fenster \"Sonst\"","e=Ergebnis in Formular","b=Berechnungszelle","v=visible",null,null,null,null,null,null,{"$f":"A423","v":"Formel 14"},null,null,null,"Beschreibung"]
[null,null,null,null,"b","v"]
[null,null,null,null,null,"n","_____________________________________________________________________________________________________"]
[null,null,null,"e","b","v"]
[null,null,null,null,null,"n","_____________________________________________________________________________________________________"]
[null,null,null,null,"b","n"]
[null,null,null,null,null,"n","_____________________________________________________________________________________________________"]
[null,null,null,null,"b","n"]
[null,null,null,null,null,"n","_____________________________________________________________________________________________________"]
[null,null,null,null,"b","n"]
[null,null,null,null,null,"n","_____________________________________________________________________________________________________"]
[null,null,null,null,"b","n",null,null,null,null,null,null,null,null,null,")"]
[null,null,null,null,null,"n","_____________________________________________________________________________________________________"]
[null,null,null,null,"b","n"]
[null,null,null,null,null,"n","_____________________________________________________________________________________________________"]
[null,null,null,null,"b","n"]
[null,null,null,null,null,"n","_____________________________________________________________________________________________________"]
[null,null,null,null,"b","n"]
[null,null,null,null,null,"n","_____________________________________________________________________________________________________"]
[null,null,null,null,"b","n"]
[null,null,null,null,null,"n","_____________________________________________________________________________________________________"]
[null,null,null,null,"b","n"]
[null,null,null,null,null,"n","_____________________________________________________________________________________________________"]
[null,null,null,null,"b","n"]
[null,null,null,null,null,"n","_____________________________________________________________________________________________________"]
[null,null,null,null,"b","n"]
[null,null,null,null,null,"n","_____________________________________________________________________________________________________"]
[null,null,null,null,"b","n"]
[null,null,null,null,null,"n","_____________________________________________________________________________________________________"]
[]
[]
["Formel 15",null,"Bezugszelle für Fenster \"Sonst\"","e=Ergebnis in Formular","b=Berechnungszelle","v=visible",null,null,null,null,null,null,{"$f":"A454","v":"Formel 15"},null,null,null,"Beschreibung"]
[null,null,null,null,"b","v"]
[null,null,null,null,null,"n","_____________________________________________________________________________________________________"]
[null,null,null,"e","b","v"]
[null,null,null,null,null,"n","_____________________________________________________________________________________________________"]
[null,null,null,null,"b","n"]
[null,null,null,null,null,"n","_____________________________________________________________________________________________________"]
[null,null,null,null,"b","n"]
[null,null,null,null,null,"n","_____________________________________________________________________________________________________"]
[null,null,null,null,"b","n"]
[null,null,null,null,null,"n","_____________________________________________________________________________________________________"]
[null,null,null,null,"b","n",null,null,null,null,null,null,null,null,null,")"]
[null,null,null,null,null,"n","_____________________________________________________________________________________________________"]
[null,null,null,null,"b","n"]
[null,null,null,null,null,"n","_____________________________________________________________________________________________________"]
[null,null,null,null,"b","n"]
[null,null,null,null,null,"n","_____________________________________________________________________________________________________"]
[null,null,null,null,"b","n"]
[null,null,null,null,null,"n","_____________________________________________________________________________________________________"]
[null,null,null,null,"b","n"]
[null,null,null,null,null,"n","_____________________________________________________________________________________________________"]
[null,null,null,null,"b","n"]
[null,null,null,null,null,"n","_____________________________________________________________________________________________________"]
[null,null,null,null,"b","n"]
[null,null,null,null,null,"n","_____________________________________________________________________________________________________"]
[null,null,null,null,"b","n"]
[null,null,null,null,null,"n","_____________________________________________________________________________________________________"]
[null,null,null,null,"b","n"]
[null,null,null,null,null,"n","_____________________________________________________________________________________________________"]

{"sheet":"Druck","index":4,"n_rows":52,"n_cols":19,"rows_kept":52,"cut":false,"hidden":false,"merged":[[26,6,26,7],[26,8,26,9],[19,6,19,7],[20,6,20,7],[38,1,41,1],[23,6,23,7],[24,6,24,7],[19,8,19,9],[20,8,20,9],[21,8,21,9],[22,8,22,9],[23,8,23,9],[37,7,37,9],[27,8,27,9],[28,8,28,9],[29,8,29,9],[46,1,48,1],[14,6,14,7],[15,6,15,7],[16,6,16,7],[17,6,17,7],[18,6,18,7],[35,7,35,10],[25,8,25,9],[27,6,27,7],[28,6,28,7],[29,6,29,7],[30,6,30,7],[25,6,25,7],[24,8,24,9],[21,6,21,7],[22,6,22,7],[30,8,30,9],[14,8,14,9],[15,8,15,9],[16,8,16,9],[17,8,17,9],[18,8,18,9]]}
[]
[{"$f":"IF(Direktzahlungen!A1=\"\",\"\",Direktzahlungen!A1)","v":""},null,{"$f":"IF(Direktzahlungen!B1=\"\",\"\",Direktzahlungen!B1)","v":"Aktuell gültige Betriebsdaten für Direktzahlungen "},{"$f":"IF(Direktzahlungen!C1=\"\",\"\",Direktzahlungen!C1)","v":""},{"$f":"IF(Direktzahlungen!D1=\"\",\"\",Direktzahlungen!D1)","v":""},{"$f":"IF(Direktzahlungen!E1=\"\",\"\",Direktzahlungen!E1)","v":""},{"$f":"IF(Direktzahlungen!F1=\"\",\"\",Direktzahlungen!F1)","v":""},null,{"$f":"IF(Direktzahlungen!G1=\"\",\"\",Direktzahlungen!G1)","v":""},null,{"$f":"IF(Direktzahlungen!H1=\"\",\"\",Direktzahlungen!H1)","v":""},{"$f":"IF(Direktzahlungen!I1=\"\",\"\",Direktzahlungen!I1)","v":""},{"$f":"\"  \"&Direktzahlungen!K1","v":"  Kosten für Erfüllung der Konditionalitäten"},null,null,null,{"$f":"IF(Direktzahlungen!L1=\"\",\"\",Direktzahlungen!L1)","v":"ha"},{"$f":"IF(Direktzahlungen!M1=\"\",\"\",Direktzahlungen!M1)","v":"Kosten/ha (€)"},{"$f":"IF(Direktzahlungen!N1=\"\",\"\",Direktzahlungen!N1)","v":"Kosten ges. (€)"}]
[{"$f":"IF(Direktzahlungen!A2=\"\",\"\",Direktzahlungen!A2)","v":""},null,{"$f":"IF(Direktzahlungen!B2=\"\",\"\",Direktzahlungen!B2)","v":""},{"$f":"IF(Direktzahlungen!C2=\"\",\"\",Direktzahlungen!C2)","v":"ha"},{"$f":"IF(Direktzahlungen!D2=\"\",\"\",Direktzahlungen!D2)","v":""},{"$f":"IF(Direktzahlungen!E2=\"\",\"\",Direktzahlungen!E2)","v":""},{"$f":"IF(Direktzahlungen!F2=\"\",\"\",Direktzahlungen!F2)","v":""},null,{"$f":"IF(Direktzahlungen!G2=\"\",\"\",Direktzahlungen!G2)","v":""},null,{"$f":"IF(Direktzahlungen!H2=\"\",\"\",Direktzahlungen!H2)","v":""},{"$f":"IF(Direktzahlungen!I2=\"\",\"\",Direktzahlungen!I2)","v":""},{"$f":"\"  \"&Direktzahlungen!K2","v":"  GLÖZ 1    Erhaltung von Dauergrünland"},null,null,null,{"$f":"IF(Direktzahlungen!L2=\"\",\"\",Direktzahlungen!L2)","v":0},{"$f":"IF(Direktzahlungen!M2=\"\",\"\",Direktzahlungen!M2)","v":0},{"$f":"IF(Direktzahlungen!N2=\"\",\"\",Direktzahlungen!N2)","v":0}]
[{"$f":"IF(Direktzahlungen!A3=\"\",\"\",Direktzahlungen!A3)","v":""},null,{"$f":"IF(Direktzahlungen!B3=\"\",\"\",Direktzahlungen!B3)","v":"Ackerland (AL):"},{"$f":"IF(Direktzahlungen!C3=\"\",\"\",Direktzahlungen!C3)","v":0},{"$f":"IF(Direktzahlungen!D3=\"\",\"\",Direktzahlungen!D3)","v":""},{"$f":"IF(Direktzahlungen!E3=\"\",\"\",Direktzahlungen!E3)","v":"Anzahl Mutterkühe:"},null,null,null,null,{"$f":"IF(Direktzahlungen!H3=\"\",\"\",Direktzahlungen!H3)","v":0},{"$f":"IF(Direktzahlungen!I3=\"\",\"\",Direktzahlungen!I3)","v":""},{"$f":"\"  \"&Direktzahlungen!K3","v":"  GLÖZ 2    Schutz von Feuchtgebieten und Torfflächen"},null,null,null,{"$f":"IF(Direktzahlungen!L3=\"\",\"\",Direktzahlungen!L3)","v":0},{"$f":"IF(Direktzahlungen!M3=\"\",\"\",Direktzahlungen!M3)","v":0},{"$f":"IF(Direktzahlungen!N3=\"\",\"\",Direktzahlungen!N3)","v":0}]
[{"$f":"IF(Direktzahlungen!A4=\"\",\"\",Direktzahlungen!A4)","v":""},null,{"$f":"IF(Direktzahlungen!B4=\"\",\"\",Direktzahlungen!B4)","v":"    Ackerland (AL) ohne Fruchtwechsel"},{"$f":"IF(Direktzahlungen!C4=\"\",\"\",Direktzahlungen!C4)","v":0},{"$f":"IF(Direktzahlungen!D4=\"\",\"\",Direktzahlungen!D4)","v":""},{"$f":"IF(Direktzahlungen!E4=\"\",\"\",Direktzahlungen!E4)","v":"Anzahl Mutterschafe/-ziegen"},null,null,null,null,{"$f":"IF(Direktzahlungen!H4=\"\",\"\",Direktzahlungen!H4)","v":0},{"$f":"IF(Direktzahlungen!I4=\"\",\"\",Direktzahlungen!I4)","v":""},{"$f":"\"  \"&Direktzahlungen!K4","v":"  GLÖZ 3    Verbot des Abbrennens von Stoppelfeldern"},null,null,null,{"$f":"IF(Direktzahlungen!L4=\"\",\"\",Direktzahlungen!L4)","v":0},{"$f":"IF(Direktzahlungen!M4=\"\",\"\",Direktzahlungen!M4)","v":0},{"$f":"IF(Direktzahlungen!N4=\"\",\"\",Direktzahlungen!N4)","v":0}]
[{"$f":"IF(Direktzahlungen!A5=\"\",\"\",Direktzahlungen!A5)","v":""},null,{"$f":"IF(Direktzahlungen!B5=\"\",\"\",Direktzahlungen!B5)","v":"    Gras- und Grünfutterpfl., Leguminosen (AL)"},{"$f":"IF(Direktzahlungen!C5=\"\",\"\",Direktzahlungen!C5)","v":0},{"$f":"IF(Direktzahlungen!D5=\"\",\"\",Direktzahlungen!D5)","v":""},{"$f":"IF(Direktzahlungen!E5=\"\",\"\",Direktzahlungen!E5)","v":""},null,null,null,null,{"$f":"IF(Direktzahlungen!H5=\"\",\"\",Direktzahlungen!H5)","v":""},{"$f":"IF(Direktzahlungen!I5=\"\",\"\",Direktzahlungen!I5)","v":""},{"$f":"\"  \"&Direktzahlungen!K5","v":"  GLÖZ 4    Pufferstreifen entlang von Wasserläufen"},null,null,null,{"$f":"IF(Direktzahlungen!L5=\"\",\"\",Direktzahlungen!L5)","v":0},{"$f":"IF(Direktzahlungen!M5=\"\",\"\",Direktzahlungen!M5)","v":0},{"$f":"IF(Direktzahlungen!N5=\"\",\"\",Direktzahlungen!N5)","v":0}]
[{"$f":"IF(Direktzahlungen!A7=\"\",\"\",Direktzahlungen!A7)","v":""},null,{"$f":"IF(Direktzahlungen!B6=\"\",\"\",Direktzahlungen!B6)","v":"    Landschaftselemente u. Pufferstreifen auf AL"},{"$f":"IF(Direktzahlungen!C6=\"\",\"\",Direktzahlungen!C6)","v":0},{"$f":"IF(Direktzahlungen!D6=\"\",\"\",Direktzahlungen!D6)","v":""},{"$f":"IF(Direktzahlungen!E6=\"\",\"\",Direktzahlungen!E6)","v":"Junglandwirt (Jahr des erstmaligen Antrags)"},null,null,null,null,{"$f":"IF(Direktzahlungen!H6=\"\",\"\",Direktzahlungen!H6)","v":0},{"$f":"IF(Direktzahlungen!I6=\"\",\"\",Direktzahlungen!I6)","v":""},{"$f":"\"  \"&Direktzahlungen!K6","v":"  GLÖZ 5    Bodenschädigung und -erosion"},null,null,null,{"$f":"IF(Direktzahlungen!L6=\"\",\"\",Direktzahlungen!L6)","v":0},{"$f":"IF(Direktzahlungen!M6=\"\",\"\",Direktzahlungen!M6)","v":0},{"$f":"IF(Direktzahlungen!N6=\"\",\"\",Direktzahlungen!N6)","v":0}]
[{"$f":"IF(Direktzahlungen!A8=\"\",\"\",Direktzahlungen!A8)","v":""},null,{"$f":"IF(Direktzahlungen!B7=\"\",\"\",Direktzahlungen!B7)","v":"Dauergrünland (DG):"},{"$f":"IF(Direktzahlungen!C7=\"\",\"\",Direktzahlungen!C7)","v":0},{"$f":"IF(Direktzahlungen!D7=\"\",\"\",Direktzahlungen!D7)","v":""},{"$f":"IF(Direktzahlungen!E7=\"\",\"\",Direktzahlungen!E7)","v":"Ökolandwirt"},{"$f":"IF(Direktzahlungen!F7=\"\",\"\",Direktzahlungen!F7)","v":""},null,{"$f":"IF(Direktzahlungen!G7=\"\",\"\",Direktzahlungen!G7)","v":""},null,{"$f":"IF(Direktzahlungen!H7=\"\",\"\",Direktzahlungen!H7)","v":"nein"},{"$f":"IF(Direktzahlungen!I7=\"\",\"\",Direktzahlungen!I7)","v":""},{"$f":"\"  \"&Direktzahlungen!K7","v":"  GLÖZ 6    Mindestbodenbedeckung"},null,null,null,{"$f":"IF(Direktzahlungen!L7=\"\",\"\",Direktzahlungen!L7)","v":0},{"$f":"IF(Direktzahlungen!M7=\"\",\"\",Direktzahlungen!M7)","v":0},{"$f":"IF(Direktzahlungen!N7=\"\",\"\",Direktzahlungen!N7)","v":0}]
[{"$f":"IF(Direktzahlungen!A9=\"\",\"\",Direktzahlungen!A9)","v":""},null,{"$f":"IF(Direktzahlungen!B8=\"\",\"\",Direktzahlungen!B8)","v":"Dauerkulturfläche (DK):"},{"$f":"IF(Direktzahlungen!C8=\"\",\"\",Direktzahlungen!C8)","v":0},{"$f":"IF(Direktzahlungen!D8=\"\",\"\",Direktzahlungen!D8)","v":""},{"$f":"IF(Direktzahlungen!E8=\"\",\"\",Direktzahlungen!E8)","v":""},{"$f":"IF(Direktzahlungen!F8=\"\",\"\",Direktzahlungen!F8)","v":""},null,{"$f":"IF(Direktzahlungen!G8=\"\",\"\",Direktzahlungen!G8)","v":""},null,{"$f":"IF(Direktzahlungen!H8=\"\",\"\",Direktzahlungen!H8)","v":""},{"$f":"IF(Direktzahlungen!I8=\"\",\"\",Direktzahlungen!I8)","v":""},{"$f":"\"  \"&Direktzahlungen!K8","v":"  GLÖZ 7    Fruchtwechsel auf Ackerland"},null,null,null,{"$f":"IF(Direktzahlungen!L8=\"\",\"\",Direktzahlungen!L8)","v":0},{"$f":"IF(Direktzahlungen!M8=\"\",\"\",Direktzahlungen!M8)","v":0},{"$f":"IF(Direktzahlungen!N8=\"\",\"\",Direktzahlungen!N8)","v":0}]
[{"$f":"IF(Direktzahlungen!A10=\"\",\"\",Direktzahlungen!A10)","v":""},null,{"$f":"IF(Direktzahlungen!B9=\"\",\"\",Direktzahlungen!B9)","v":"Förderfähige ldw. Fläche:"},{"$f":"IF(Direktzahlungen!C9=\"\",\"\",Direktzahlungen!C9)","v":0},{"$f":"IF(Direktzahlungen!D9=\"\",\"\",Direktzahlungen!D9)","v":""},{"$f":"IF(Direktzahlungen!E9=\"\",\"\",Direktzahlungen!E9)","v":""},{"$f":"IF(Direktzahlungen!F9=\"\",\"\",Direktzahlungen!F9)","v":""},null,{"$f":"IF(Direktzahlungen!G9=\"\",\"\",Direktzahlungen!G9)","v":""},null,{"$f":"IF(Direktzahlungen!H9=\"\",\"\",Direktzahlungen!H9)","v":""},{"$f":"IF(Direktzahlungen!I9=\"\",\"\",Direktzahlungen!I9)","v":""},{"$f":"\"  \"&Direktzahlungen!K9","v":"  GLÖZ 8    Brache (4% des AL)"},null,null,null,{"$f":"IF(Direktzahlungen!L9=\"\",\"\",Direktzahlungen!L9)","v":0},{"$f":"IF(Direktzahlungen!M9=\"\",\"\",Direktzahlungen!M9)","v":0},{"$f":"IF(Direktzahlungen!N9=\"\",\"\",Direktzahlungen!N9)","v":0}]
[null,null,{"$f":"IF(Direktzahlungen!B10=\"\",\"\",Direktzahlungen!B10)","v":"LF in Natura-2000-Gebieten:"},{"$f":"IF(Direktzahlungen!C10=\"\",\"\",Direktzahlungen!C10)","v":0},{"$f":"IF(Direktzahlungen!D10=\"\",\"\",Direktzahlungen!D10)","v":""},{"$f":"IF(Direktzahlungen!E10=\"\",\"\",Direktzahlungen!E10)","v":""},{"$f":"IF(Direktzahlungen!F10=\"\",\"\",Direktzahlungen!F10)","v":""},null,{"$f":"IF(Direktzahlungen!G10=\"\",\"\",Direktzahlungen!G10)","v":""},null,{"$f":"IF(Direktzahlungen!H10=\"\",\"\",Direktzahlungen!H10)","v":""},{"$f":"IF(Direktzahlungen!I10=\"\",\"\",Direktzahlungen!I10)","v":""},{"$f":"\"  \"&Direktzahlungen!K10","v":"  GLÖZ 9    Dauergrünland in Natura-2000-Gebieten"},null,null,null,{"$f":"IF(Direktzahlungen!L10=\"\",\"\",Direktzahlungen!L10)","v":0},{"$f":"IF(Direktzahlungen!M10=\"\",\"\",Direktzahlungen!M10)","v":0},{"$f":"IF(Direktzahlungen!N10=\"\",\"\",Direktzahlungen!N10)","v":0}]
[{"$f":"IF(Direktzahlungen!A11=\"\",\"\",Direktzahlungen!A11)","v":""},null,{"$f":"IF(Direktzahlungen!B11=\"\",\"\",Direktzahlungen!B11)","v":""},{"$f":"IF(Direktzahlungen!C11=\"\",\"\",Direktzahlungen!C11)","v":""},{"$f":"IF(Direktzahlungen!D11=\"\",\"\",Direktzahlungen!D11)","v":""},{"$f":"IF(Direktzahlungen!E11=\"\",\"\",Direktzahlungen!E11)","v":""},{"$f":"IF(Direktzahlungen!F11=\"\",\"\",Direktzahlungen!F11)","v":""},null,{"$f":"IF(Direktzahlungen!G11=\"\",\"\",Direktzahlungen!G11)","v":""},null,{"$f":"IF(Direktzahlungen!H11=\"\",\"\",Direktzahlungen!H11)","v":""},{"$f":"IF(Direktzahlungen!I11=\"\",\"\",Direktzahlungen!I11)","v":""},{"$f":"IF(Direktzahlungen!J11=\"\",\"\",Direktzahlungen!J11)","v":""},{"$f":"IF(Direktzahlungen!K11=\"\",\"\",Direktzahlungen!K11)","v":""},null,null,{"$f":"IF(Direktzahlungen!L11=\"\",\"\",Direktzahlungen!L11)","v":"Summe"},{"$f":"IF(Direktzahlungen!M11=\"\",\"\",Direktzahlungen!M11)","v":""},{"$f":"IF(Direktzahlungen!N11=\"\",\"\",Direktzahlungen!N11)","v":0}]
[]
[{"$f":"IF(Direktzahlungen!A12=\"\",\"\",Direktzahlungen!A12)","v":""},{"$f":"IF(Direktzahlungen!B12=\"\",\"\",Direktzahlungen!B12)","v":"Berechnung der Einkommensstützung für Nachhaltigkeit in den Jahren"},null,null,null,null,null,null,null,null,null,{"$f":"IF(Direktzahlungen!I12=\"\",\"\",Direktzahlungen!I12)","v":""},{"$f":"IF(Direktzahlungen!J12=\"\",\"\",Direktzahlungen!J12)","v":""},{"$f":"IF(Direktzahlungen!K12=\"\",\"\",Direktzahlungen!K12)","v":""},{"$f":"IF(Direktzahlungen!L12=\"\",\"\",Direktzahlungen!L12)","v":""},null,{"$f":"IF(Direktzahlungen!M12=\"\",\"\",Direktzahlungen!M12)","v":""},{"$f":"IF(Direktzahlungen!N12=\"\",\"\",Direktzahlungen!N12)","v":""},{"$f":"IF(Direktzahlungen!O12=\"\",\"\",Direktzahlungen!O12)","v":""}]
[{"$f":"IF(Direktzahlungen!A13=\"\",\"\",Direktzahlungen!A13)","v":""},{"$f":"IF(Direktzahlungen!B13=\"\",\"\",Direktzahlungen!B13)","v":""},null,{"$f":"IF(Direktzahlungen!C13=\"\",\"\",Direktzahlungen!C13)","v":""},{"$f":"IF(Direktzahlungen!D13=\"\",\"\",Direktzahlungen!D13)","v":2021},{"$f":"IF(Direktzahlungen!E13=\"\",\"\",Direktzahlungen!E13)","v":2023},{"$f":"IF(Direktzahlungen!F13=\"\",\"\",Direktzahlungen!F13)","v":2024},null,{"$f":"IF(Direktzahlungen!G13=\"\",\"\",Direktzahlungen!G13)","v":2025},null,{"$f":"IF(Direktzahlungen!H13=\"\",\"\",Direktzahlungen!H13)","v":2026},{"$f":"IF(Direktzahlungen!I13=\"\",\"\",Direktzahlungen!I13)","v":""},{"$f":"IF(Direktzahlungen!J13=\"\",\"\",Direktzahlungen!J13)","v":""},{"$f":"IF(Direktzahlungen!K13=\"\",\"\",Direktzahlungen!K13)","v":""},{"$f":"IF(Direktzahlungen!L13=\"\",\"\",Direktzahlungen!L13)","v":""},null,{"$f":"IF(Direktzahlungen!M13=\"\",\"\",Direktzahlungen!M13)","v":""},{"$f":"IF(Direktzahlungen!N13=\"\",\"\",Direktzahlungen!N13)","v":""},{"$f":"IF(Direktzahlungen!O13=\"\",\"\",Direktzahlungen!O13)","v":""}]
[{"$f":"IF(Direktzahlungen!A14=\"\",\"\",Direktzahlungen!A14)","v":""},{"$f":"IF(Direktzahlungen!B14=\"\",\"\",Direktzahlungen!B14)","v":"Basisprämie/Greeningprämie (bis 2022)"},null,{"$f":"IF(Direktzahlungen!C14=\"\",\"\",Direktzahlungen!C14)","v":"€/ha"},{"$f":"IF(Direktzahlungen!D14=\"\",\"\",Direktzahlungen!D14)","v":253.94},{"$f":"IF(Direktzahlungen!E14=\"\",\"\",Direktzahlungen!E14)","v":156.56},{"$f":"IF(Direktzahlungen!F14=\"\",\"\",Direktzahlungen!F14)","v":154.72},null,{"$f":"IF(Direktzahlungen!G14=\"\",\"\",Direktzahlungen!G14)","v":151.97},null,{"$f":"IF(Direktzahlungen!H14=\"\",\"\",Direktzahlungen!H14)","v":147.38},{"$f":"IF(Direktzahlungen!I14=\"\",\"\",Direktzahlungen!I14)","v":""},{"$f":"IF(Direktzahlungen!J14=\"\",\"\",Direktzahlungen!J14)","v":""},{"$f":"IF(Direktzahlungen!K14=\"\",\"\",Direktzahlungen!K14)","v":""},{"$f":"IF(Direktzahlungen!L14=\"\",\"\",Direktzahlungen!L14)","v":""},null,{"$f":"IF(Direktzahlungen!M14=\"\",\"\",Direktzahlungen!M14)","v":""},{"$f":"IF(Direktzahlungen!N14=\"\",\"\",Direktzahlungen!N14)","v":""},{"$f":"IF(Direktzahlungen!O14=\"\",\"\",Direktzahlungen!O14)","v":""}]
[{"$f":"IF(Direktzahlungen!A15=\"\",\"\",Direktzahlungen!A15)","v":""},{"$f":"IF(Direktzahlungen!B15=\"\",\"\",Direktzahlungen!B15)","v":"Einkommensgrundstützung (ab 2023)"},null,{"$f":"IF(Direktzahlungen!C15=\"\",\"\",Direktzahlungen!C15)","v":"€/Betr"},{"$f":"IF(Direktzahlungen!D15=\"\",\"\",Direktzahlungen!D15)","v":0},{"$f":"IF(Direktzahlungen!E15=\"\",\"\",Direktzahlungen!E15)","v":0},{"$f":"IF(Direktzahlungen!F15=\"\",\"\",Direktzahlungen!F15)","v":0},null,{"$f":"IF(Direktzahlungen!G15=\"\",\"\",Direktzahlungen!G15)","v":0},null,{"$f":"IF(Direktzahlungen!H15=\"\",\"\",Direktzahlungen!H15)","v":0},{"$f":"IF(Direktzahlungen!I15=\"\",\"\",Direktzahlungen!I15)","v":""},{"$f":"IF(Direktzahlungen!J15=\"\",\"\",Direktzahlungen!J15)","v":""},{"$f":"IF(Direktzahlungen!K15=\"\",\"\",Direktzahlungen!K15)","v":""},{"$f":"IF(Direktzahlungen!L15=\"\",\"\",Direktzahlungen!L15)","v":""},null,{"$f":"IF(Direktzahlungen!M15=\"\",\"\",Direktzahlungen!M15)","v":""},{"$f":"IF(Direktzahlungen!N15=\"\",\"\",Direktzahlungen!N15)","v":""},{"$f":"IF(Direktzahlungen!O15=\"\",\"\",Direktzahlungen!O15)","v":""}]
[{"$f":"IF(Direktzahlungen!A16=\"\",\"\",Direktzahlungen!A16)","v":""},{"$f":"IF(Direktzahlungen!B16=\"\",\"\",Direktzahlungen!B16)","v":"ersten 30 ha (bis 2022) / 40 ha (ab 2023)"},null,{"$f":"IF(Direktzahlungen!C16=\"\",\"\",Direktzahlungen!C16)","v":"€/ha"},{"$f":"IF(Direktzahlungen!D16=\"\",\"\",Direktzahlungen!D16)","v":50.12},{"$f":"IF(Direktzahlungen!E16=\"\",\"\",Direktzahlungen!E16)","v":69.16},{"$f":"IF(Direktzahlungen!F16=\"\",\"\",Direktzahlungen!F16)","v":69.16},null,{"$f":"IF(Direktzahlungen!G16=\"\",\"\",Direktzahlungen!G16)","v":68.39},null,{"$f":"IF(Direktzahlungen!H16=\"\",\"\",Direktzahlungen!H16)","v":67.23},{"$f":"IF(Direktzahlungen!I16=\"\",\"\",Direktzahlungen!I16)","v":""},{"$f":"IF(Direktzahlungen!J16=\"\",\"\",Direktzahlungen!J16)","v":""},{"$f":"IF(Direktzahlungen!K16=\"\",\"\",Direktzahlungen!K16)","v":""},{"$f":"IF(Direktzahlungen!L16=\"\",\"\",Direktzahlungen!L16)","v":""},null,{"$f":"IF(Direktzahlungen!M16=\"\",\"\",Direktzahlungen!M16)","v":""},{"$f":"IF(Direktzahlungen!N16=\"\",\"\",Direktzahlungen!N16)","v":""},{"$f":"IF(Direktzahlungen!O16=\"\",\"\",Direktzahlungen!O16)","v":""}]
[{"$f":"IF(Direktzahlungen!A17=\"\",\"\",Direktzahlungen!A17)","v":""},{"$f":"IF(Direktzahlungen!B17=\"\",\"\",Direktzahlungen!B17)","v":""},null,{"$f":"IF(Direktzahlungen!C17=\"\",\"\",Direktzahlungen!C17)","v":"€/Betr"},{"$f":"IF(Direktzahlungen!D17=\"\",\"\",Direktzahlungen!D17)","v":0},{"$f":"IF(Direktzahlungen!E17=\"\",\"\",Direktzahlungen!E17)","v":0},{"$f":"IF(Direktzahlungen!F17=\"\",\"\",Direktzahlungen!F17)","v":0},null,{"$f":"IF(Direktzahlungen!G17=\"\",\"\",Direktzahlungen!G17)","v":0},null,{"$f":"IF(Direktzahlungen!H17=\"\",\"\",Direktzahlungen!H17)","v":0},{"$f":"IF(Direktzahlungen!I17=\"\",\"\",Direktzahlungen!I17)","v":""},{"$f":"IF(Direktzahlungen!J17=\"\",\"\",Direktzahlungen!J17)","v":""},{"$f":"IF(Direktzahlungen!K17=\"\",\"\",Direktzahlungen!K17)","v":""},{"$f":"IF(Direktzahlungen!L17=\"\",\"\",Direktzahlungen!L17)","v":""},null,{"$f":"IF(Direktzahlungen!M17=\"\",\"\",Direktzahlungen!M17)","v":""},{"$f":"IF(Direktzahlungen!N17=\"\",\"\",Direktzahlungen!N17)","v":""},{"$f":"IF(Direktzahlungen!O17=\"\",\"\",Direktzahlungen!O17)","v":""}]
[{"$f":"IF(Direktzahlungen!A18=\"\",\"\",Direktzahlungen!A18)","v":""},{"$f":"IF(Direktzahlungen!B18=\"\",\"\",Direktzahlungen!B18)","v":"weiteren 16 ha (bis 2022) / 20 ha (ab 2023)"},null,{"$f":"IF(Direktzahlungen!C18=\"\",\"\",Direktzahlungen!C18)","v":"€/ha"},{"$f":"IF(Direktzahlungen!D18=\"\",\"\",Direktzahlungen!D18)","v":30.07},{"$f":"IF(Direktzahlungen!E18=\"\",\"\",Direktzahlungen!E18)","v":41.49},{"$f":"IF(Direktzahlungen!F18=\"\",\"\",Direktzahlungen!F18)","v":41.49},null,{"$f":"IF(Direktzahlungen!G18=\"\",\"\",Direktzahlungen!G18)","v":40.340000000000003},null,{"$f":"IF(Direktzahlungen!H18=\"\",\"\",Direktzahlungen!H18)","v":39.19},{"$f":"IF(Direktzahlungen!I18=\"\",\"\",Direktzahlungen!I18)","v":""},{"$f":"IF(Direktzahlungen!J18=\"\",\"\",Direktzahlungen!J18)","v":""},{"$f":"IF(Direktzahlungen!K18=\"\",\"\",Direktzahlungen!K18)","v":""},{"$f":"IF(Direktzahlungen!L18=\"\",\"\",Direktzahlungen!L18)","v":""},null,{"$f":"IF(Direktzahlungen!M18=\"\",\"\",Direktzahlungen!M18)","v":""},{"$f":"IF(Direktzahlungen!N18=\"\",\"\",Direktzahlungen!N18)","v":""},{"$f":"IF(Direktzahlungen!O18=\"\",\"\",Direktzahlungen!O18)","v":""}]
[{"$f":"IF(Direktzahlungen!A19=\"\",\"\",Direktzahlungen!A19)","v":""},{"$f":"IF(Direktzahlungen!B19=\"\",\"\",Direktzahlungen!B19)","v":""},null,{"$f":"IF(Direktzahlungen!C19=\"\",\"\",Direktzahlungen!C19)","v":"€/Betr"},{"$f":"IF(Direktzahlungen!D19=\"\",\"\",Direktzahlungen!D19)","v":0},{"$f":"IF(Direktzahlungen!E19=\"\",\"\",Direktzahlungen!E19)","v":0},{"$f":"IF(Direktzahlungen!F19=\"\",\"\",Direktzahlungen!F19)","v":0},null,{"$f":"IF(Direktzahlungen!G19=\"\",\"\",Direktzahlungen!G19)","v":0},null,{"$f":"IF(Direktzahlungen!H19=\"\",\"\",Direktzahlungen!H19)","v":0},{"$f":"IF(Direktzahlungen!I19=\"\",\"\",Direktzahlungen!I19)","v":""},{"$f":"IF(Direktzahlungen!J19=\"\",\"\",Direktzahlungen!J19)","v":""},{"$f":"IF(Direktzahlungen!K19=\"\",\"\",Direktzahlungen!K19)","v":""},{"$f":"IF(Direktzahlungen!L19=\"\",\"\",Direktzahlungen!L19)","v":""},null,{"$f":"IF(Direktzahlungen!M19=\"\",\"\",Direktzahlungen!M19)","v":""},{"$f":"IF(Direktzahlungen!N19=\"\",\"\",Direktzahlungen!N19)","v":""},{"$f":"IF(Direktzahlungen!O19=\"\",\"\",Direktzahlungen!O19)","v":""}]
[{"$f":"IF(Direktzahlungen!A20=\"\",\"\",Direktzahlungen!A20)","v":""},{"$f":"IF(Direktzahlungen!B20=\"\",\"\",Direktzahlungen!B20)","v":"Umverteilungseinkommensstützung"},null,{"$f":"IF(Direktzahlungen!C20=\"\",\"\",Direktzahlungen!C20)","v":"€/Betr"},{"$f":"IF(Direktzahlungen!D20=\"\",\"\",Direktzahlungen!D20)","v":0},{"$f":"IF(Direktzahlungen!E20=\"\",\"\",Direktzahlungen!E20)","v":0},{"$f":"IF(Direktzahlungen!F20=\"\",\"\",Direktzahlungen!F20)","v":0},null,{"$f":"IF(Direktzahlungen!G20=\"\",\"\",Direktzahlungen!G20)","v":0},null,{"$f":"IF(Direktzahlungen!H20=\"\",\"\",Direktzahlungen!H20)","v":0},{"$f":"IF(Direktzahlungen!I20=\"\",\"\",Direktzahlungen!I20)","v":""},{"$f":"IF(Direktzahlungen!J20=\"\",\"\",Direktzahlungen!J20)","v":""},{"$f":"IF(Direktzahlungen!K20=\"\",\"\",Direktzahlungen!K20)","v":""},{"$f":"IF(Direktzahlungen!L20=\"\",\"\",Direktzahlungen!L20)","v":""},null,{"$f":"IF(Direktzahlungen!M20=\"\",\"\",Direktzahlungen!M20)","v":""},{"$f":"IF(Direktzahlungen!N20=\"\",\"\",Direktzahlungen!N20)","v":""},{"$f":"IF(Direktzahlungen!O20=\"\",\"\",Direktzahlungen!O20)","v":""}]
[{"$f":"IF(Direktzahlungen!A21=\"\",\"\",Direktzahlungen!A21)","v":""},{"$f":"IF(Direktzahlungen!B21=\"\",\"\",Direktzahlungen!B21)","v":"Junglandwirte-Prämie"},null,{"$f":"IF(Direktzahlungen!C21=\"\",\"\",Direktzahlungen!C21)","v":"€/ha"},{"$f":"IF(Direktzahlungen!D21=\"\",\"\",Direktzahlungen!D21)","v":44.27},{"$f":"IF(Direktzahlungen!E21=\"\",\"\",Direktzahlungen!E21)","v":134.04},{"$f":"IF(Direktzahlungen!F21=\"\",\"\",Direktzahlungen!F21)","v":134.04},null,{"$f":"IF(Direktzahlungen!G21=\"\",\"\",Direktzahlungen!G21)","v":134.04},null,{"$f":"IF(Direktzahlungen!H21=\"\",\"\",Direktzahlungen!H21)","v":134.04},{"$f":"IF(Direktzahlungen!I21=\"\",\"\",Direktzahlungen!I21)","v":""},{"$f":"IF(Direktzahlungen!J21=\"\",\"\",Direktzahlungen!J21)","v":""},{"$f":"IF(Direktzahlungen!K21=\"\",\"\",Direktzahlungen!K21)","v":""},{"$f":"IF(Direktzahlungen!L21=\"\",\"\",Direktzahlungen!L21)","v":""},null,{"$f":"IF(Direktzahlungen!M21=\"\",\"\",Direktzahlungen!M21)","v":""},{"$f":"IF(Direktzahlungen!N21=\"\",\"\",Direktzahlungen!N21)","v":""},{"$f":"IF(Direktzahlungen!O21=\"\",\"\",Direktzahlungen!O21)","v":""}]
[{"$f":"IF(Direktzahlungen!A22=\"\",\"\",Direktzahlungen!A22)","v":""},{"$f":"IF(Direktzahlungen!B22=\"\",\"\",Direktzahlungen!B22)","v":"für max. 90 ha LF (bis 2022) / max. 120 ha (ab 2023)"},null,{"$f":"IF(Direktzahlungen!C22=\"\",\"\",Direktzahlungen!C22)","v":"€/Betr"},{"$f":"IF(Direktzahlungen!D22=\"\",\"\",Direktzahlungen!D22)","v":0},{"$f":"IF(Direktzahlungen!E22=\"\",\"\",Direktzahlungen!E22)","v":0},{"$f":"IF(Direktzahlungen!F22=\"\",\"\",Direktzahlungen!F22)","v":0},null,{"$f":"IF(Direktzahlungen!G22=\"\",\"\",Direktzahlungen!G22)","v":0},null,{"$f":"IF(Direktzahlungen!H22=\"\",\"\",Direktzahlungen!H22)","v":0},{"$f":"IF(Direktzahlungen!I22=\"\",\"\",Direktzahlungen!I22)","v":""},{"$f":"IF(Direktzahlungen!J22=\"\",\"\",Direktzahlungen!J22)","v":""},{"$f":"IF(Direktzahlungen!K22=\"\",\"\",Direktzahlungen!K22)","v":""},{"$f":"IF(Direktzahlungen!L22=\"\",\"\",Direktzahlungen!L22)","v":""},null,{"$f":"IF(Direktzahlungen!M22=\"\",\"\",Direktzahlungen!M22)","v":""},{"$f":"IF(Direktzahlungen!N22=\"\",\"\",Direktzahlungen!N22)","v":""},{"$f":"IF(Direktzahlungen!O22=\"\",\"\",Direktzahlungen!O22)","v":""}]
[{"$f":"IF(Direktzahlungen!A23=\"\",\"\",Direktzahlungen!A23)","v":""},{"$f":"IF(Direktzahlungen!B23=\"\",\"\",Direktzahlungen!B23)","v":"Zahlung für Mutterkühe"},null,{"$f":"IF(Direktzahlungen!C23=\"\",\"\",Direktzahlungen!C23)","v":"€/Tier"},{"$f":"IF(Direktzahlungen!D23=\"\",\"\",Direktzahlungen!D23)","v":""},{"$f":"IF(Direktzahlungen!E23=\"\",\"\",Direktzahlungen!E23)","v":77.930000000000007},{"$f":"IF(Direktzahlungen!F23=\"\",\"\",Direktzahlungen!F23)","v":77.06},null,{"$f":"IF(Direktzahlungen!G23=\"\",\"\",Direktzahlungen!G23)","v":75.760000000000005},null,{"$f":"IF(Direktzahlungen!H23=\"\",\"\",Direktzahlungen!H23)","v":73.599999999999994},{"$f":"IF(Direktzahlungen!I23=\"\",\"\",Direktzahlungen!I23)","v":""},{"$f":"IF(Direktzahlungen!J23=\"\",\"\",Direktzahlungen!J23)","v":""},{"$f":"IF(Direktzahlungen!K23=\"\",\"\",Direktzahlungen!K23)","v":""},{"$f":"IF(Direktzahlungen!L23=\"\",\"\",Direktzahlungen!L23)","v":""},null,{"$f":"IF(Direktzahlungen!M23=\"\",\"\",Direktzahlungen!M23)","v":""},{"$f":"IF(Direktzahlungen!N23=\"\",\"\",Direktzahlungen!N23)","v":""},{"$f":"IF(Direktzahlungen!O23=\"\",\"\",Direktzahlungen!O23)","v":""}]
[{"$f":"IF(Direktzahlungen!A24=\"\",\"\",Direktzahlungen!A24)","v":""},{"$f":"IF(Direktzahlungen!B24=\"\",\"\",Direktzahlungen!B24)","v":""},null,{"$f":"IF(Direktzahlungen!C24=\"\",\"\",Direktzahlungen!C24)","v":"€/Betr"},{"$f":"IF(Direktzahlungen!D24=\"\",\"\",Direktzahlungen!D24)","v":""},{"$f":"IF(Direktzahlungen!E24=\"\",\"\",Direktzahlungen!E24)","v":0},{"$f":"IF(Direktzahlungen!F24=\"\",\"\",Direktzahlungen!F24)","v":0},null,{"$f":"IF(Direktzahlungen!G24=\"\",\"\",Direktzahlungen!G24)","v":0},null,{"$f":"IF(Direktzahlungen!H24=\"\",\"\",Direktzahlungen!H24)","v":0},{"$f":"IF(Direktzahlungen!I24=\"\",\"\",Direktzahlungen!I24)","v":""},{"$f":"IF(Direktzahlungen!J24=\"\",\"\",Direktzahlungen!J24)","v":""},{"$f":"IF(Direktzahlungen!K24=\"\",\"\",Direktzahlungen!K24)","v":""},{"$f":"IF(Direktzahlungen!L24=\"\",\"\",Direktzahlungen!L24)","v":""},null,{"$f":"IF(Direktzahlungen!M24=\"\",\"\",Direktzahlungen!M24)","v":""},{"$f":"IF(Direktzahlungen!N24=\"\",\"\",Direktzahlungen!N24)","v":""},{"$f":"IF(Direktzahlungen!O24=\"\",\"\",Direktzahlungen!O24)","v":""}]
[{"$f":"IF(Direktzahlungen!A25=\"\",\"\",Direktzahlungen!A25)","v":""},{"$f":"IF(Direktzahlungen!B25=\"\",\"\",Direktzahlungen!B25)","v":"Zahlung für Mutterschafe und -ziegen"},null,{"$f":"IF(Direktzahlungen!C25=\"\",\"\",Direktzahlungen!C25)","v":"€/Tier"},{"$f":"IF(Direktzahlungen!D25=\"\",\"\",Direktzahlungen!D25)","v":""},{"$f":"IF(Direktzahlungen!E25=\"\",\"\",Direktzahlungen!E25)","v":34.83},{"$f":"IF(Direktzahlungen!F25=\"\",\"\",Direktzahlungen!F25)","v":34.44},null,{"$f":"IF(Direktzahlungen!G25=\"\",\"\",Direktzahlungen!G25)","v":33.86},null,{"$f":"IF(Direktzahlungen!H25=\"\",\"\",Direktzahlungen!H25)","v":32.89},{"$f":"IF(Direktzahlungen!I25=\"\",\"\",Direktzahlungen!I25)","v":""},{"$f":"IF(Direktzahlungen!J25=\"\",\"\",Direktzahlungen!J25)","v":""},{"$f":"IF(Direktzahlungen!K25=\"\",\"\",Direktzahlungen!K25)","v":""},{"$f":"IF(Direktzahlungen!L25=\"\",\"\",Direktzahlungen!L25)","v":""},null,{"$f":"IF(Direktzahlungen!M25=\"\",\"\",Direktzahlungen!M25)","v":""},{"$f":"IF(Direktzahlungen!N25=\"\",\"\",Direktzahlungen!N25)","v":""},{"$f":"IF(Direktzahlungen!O25=\"\",\"\",Direktzahlungen!O25)","v":""}]
[{"$f":"IF(Direktzahlungen!A26=\"\",\"\",Direktzahlungen!A26)","v":""},{"$f":"IF(Direktzahlungen!B26=\"\",\"\",Direktzahlungen!B26)","v":""},null,{"$f":"IF(Direktzahlungen!C26=\"\",\"\",Direktzahlungen!C26)","v":"€/Betr"},{"$f":"IF(Direktzahlungen!D26=\"\",\"\",Direktzahlungen!D26)","v":""},{"$f":"IF(Direktzahlungen!E26=\"\",\"\",Direktzahlungen!E26)","v":0},{"$f":"IF(Direktzahlungen!F26=\"\",\"\",Direktzahlungen!F26)","v":0},null,{"$f":"IF(Direktzahlungen!G26=\"\",\"\",Direktzahlungen!G26)","v":0},null,{"$f":"IF(Direktzahlungen!H26=\"\",\"\",Direktzahlungen!H26)","v":0},{"$f":"IF(Direktzahlungen!I26=\"\",\"\",Direktzahlungen!I26)","v":""},{"$f":"IF(Direktzahlungen!J26=\"\",\"\",Direktzahlungen!J26)","v":""},{"$f":"IF(Direktzahlungen!K26=\"\",\"\",Direktzahlungen!K26)","v":""},{"$f":"IF(Direktzahlungen!L26=\"\",\"\",Direktzahlungen!L26)","v":""},null,{"$f":"IF(Direktzahlungen!M26=\"\",\"\",Direktzahlungen!M26)","v":""},{"$f":"IF(Direktzahlungen!N26=\"\",\"\",Direktzahlungen!N26)","v":""},{"$f":"IF(Direktzahlungen!O26=\"\",\"\",Direktzahlungen!O26)","v":""}]
[{"$f":"IF(Direktzahlungen!A27=\"\",\"\",Direktzahlungen!A27)","v":""},{"$f":"IF(Direktzahlungen!B27=\"\",\"\",Direktzahlungen!B27)","v":"gekoppelte Einkommensstützung"},null,{"$f":"IF(Direktzahlungen!C27=\"\",\"\",Direktzahlungen!C27)","v":"€/Betr"},{"$f":"IF(Direktzahlungen!D27=\"\",\"\",Direktzahlungen!D27)","v":""},{"$f":"IF(Direktzahlungen!E27=\"\",\"\",Direktzahlungen!E27)","v":0},{"$f":"IF(Direktzahlungen!F27=\"\",\"\",Direktzahlungen!F27)","v":0},null,{"$f":"IF(Direktzahlungen!G27=\"\",\"\",Direktzahlungen!G27)","v":0},null,{"$f":"IF(Direktzahlungen!H27=\"\",\"\",Direktzahlungen!H27)","v":0},{"$f":"IF(Direktzahlungen!I27=\"\",\"\",Direktzahlungen!I27)","v":""},{"$f":"IF(Direktzahlungen!J27=\"\",\"\",Direktzahlungen!J27)","v":""},{"$f":"IF(Direktzahlungen!K27=\"\",\"\",Direktzahlungen!K27)","v":""},{"$f":"IF(Direktzahlungen!L27=\"\",\"\",Direktzahlungen!L27)","v":""},null,{"$f":"IF(Direktzahlungen!M27=\"\",\"\",Direktzahlungen!M27)","v":""},{"$f":"IF(Direktzahlungen!N27=\"\",\"\",Direktzahlungen!N27)","v":""},{"$f":"IF(Direktzahlungen!O27=\"\",\"\",Direktzahlungen!O27)","v":""}]
[{"$f":"IF(Direktzahlungen!A28=\"\",\"\",Direktzahlungen!A28)","v":""},{"$f":"IF(Direktzahlungen!B28=\"\",\"\",Direktzahlungen!B28)","v":"Summe Einkommensstützung"},null,{"$f":"IF(Direktzahlungen!C28=\"\",\"\",Direktzahlungen!C28)","v":""},{"$f":"IF(Direktzahlungen!D28=\"\",\"\",Direktzahlungen!D28)","v":0},{"$f":"IF(Direktzahlungen!E28=\"\",\"\",Direktzahlungen!E28)","v":0},{"$f":"IF(Direktzahlungen!F28=\"\",\"\",Direktzahlungen!F28)","v":0},null,{"$f":"IF(Direktzahlungen!G28=\"\",\"\",Direktzahlungen!G28)","v":0},null,{"$f":"IF(Direktzahlungen!H28=\"\",\"\",Direktzahlungen!H28)","v":0},{"$f":"IF(Direktzahlungen!I28=\"\",\"\",Direktzahlungen!I28)","v":""},{"$f":"IF(Direktzahlungen!J28=\"\",\"\",Direktzahlungen!J28)","v":""},{"$f":"IF(Direktzahlungen!K28=\"\",\"\",Direktzahlungen!K28)","v":""},{"$f":"IF(Direktzahlungen!L28=\"\",\"\",Direktzahlungen!L28)","v":""},null,{"$f":"IF(Direktzahlungen!M28=\"\",\"\",Direktzahlungen!M28)","v":""},{"$f":"IF(Direktzahlungen!N28=\"\",\"\",Direktzahlungen!N28)","v":""},{"$f":"IF(Direktzahlungen!O28=\"\",\"\",Direktzahlungen!O28)","v":""}]
[{"$f":"IF(Direktzahlungen!A29=\"\",\"\",Direktzahlungen!A29)","v":""},{"$f":"IF(Direktzahlungen!B29=\"\",\"\",Direktzahlungen!B29)","v":"je ha LF"},null,{"$f":"IF(Direktzahlungen!C29=\"\",\"\",Direktzahlungen!C29)","v":""},{"$f":"IF(Direktzahlungen!D29=\"\",\"\",Direktzahlungen!D29)","v":0},{"$f":"IF(Direktzahlungen!E29=\"\",\"\",Direktzahlungen!E29)","v":0},{"$f":"IF(Direktzahlungen!F29=\"\",\"\",Direktzahlungen!F29)","v":0},null,{"$f":"IF(Direktzahlungen!G29=\"\",\"\",Direktzahlungen!G29)","v":0},null,{"$f":"IF(Direktzahlungen!H29=\"\",\"\",Direktzahlungen!H29)","v":0},{"$f":"IF(Direktzahlungen!I29=\"\",\"\",Direktzahlungen!I29)","v":""},{"$f":"IF(Direktzahlungen!J29=\"\",\"\",Direktzahlungen!J29)","v":""},{"$f":"IF(Direktzahlungen!K29=\"\",\"\",Direktzahlungen!K29)","v":""},{"$f":"IF(Direktzahlungen!L29=\"\",\"\",Direktzahlungen!L29)","v":""},null,{"$f":"IF(Direktzahlungen!M29=\"\",\"\",Direktzahlungen!M29)","v":""},{"$f":"IF(Direktzahlungen!N29=\"\",\"\",Direktzahlungen!N29)","v":""},{"$f":"IF(Direktzahlungen!O29=\"\",\"\",Direktzahlungen!O29)","v":""}]
[{"$f":"IF(Direktzahlungen!A30=\"\",\"\",Direktzahlungen!A30)","v":""},null,{"$f":"IF(Direktzahlungen!B30=\"\",\"\",Direktzahlungen!B30)","v":""},{"$f":"IF(Direktzahlungen!C30=\"\",\"\",Direktzahlungen!C30)","v":""},{"$f":"IF(Direktzahlungen!D30=\"\",\"\",Direktzahlungen!D30)","v":""},{"$f":"IF(Direktzahlungen!E30=\"\",\"\",Direktzahlungen!E30)","v":""},{"$f":"IF(Direktzahlungen!F30=\"\",\"\",Direktzahlungen!F30)","v":""},null,{"$f":"IF(Direktzahlungen!G30=\"\",\"\",Direktzahlungen!G30)","v":""},null,{"$f":"IF(Direktzahlungen!H30=\"\",\"\",Direktzahlungen!H30)","v":""},{"$f":"IF(Direktzahlungen!I30=\"\",\"\",Direktzahlungen!I30)","v":""},{"$f":"IF(Direktzahlungen!J30=\"\",\"\",Direktzahlungen!J30)","v":""},{"$f":"IF(Direktzahlungen!K30=\"\",\"\",Direktzahlungen!K30)","v":""},{"$f":"IF(Direktzahlungen!L30=\"\",\"\",Direktzahlungen!L30)","v":""},null,{"$f":"IF(Direktzahlungen!M30=\"\",\"\",Direktzahlungen!M30)","v":""},{"$f":"IF(Direktzahlungen!N30=\"\",\"\",Direktzahlungen!N30)","v":""},{"$f":"IF(Direktzahlungen!O30=\"\",\"\",Direktzahlungen!O30)","v":""}]
[]
[]
[{"$f":"IF(Ökoregelungen!A1=\"\",\"\",Ökoregelungen!A1)","v":""},null,{"$f":"IF(Ökoregelungen!B1=\"\",\"\",Ökoregelungen!B1)","v":""},{"$f":"IF(Ökoregelungen!D1=\"\",\"\",Ökoregelungen!D1)","v":""},{"$f":"IF(Ökoregelungen!E1=\"\",\"\",Ökoregelungen!E1)","v":""},{"$f":"IF(Ökoregelungen!F1=\"\",\"\",Ökoregelungen!F1)","v":""},{"$f":"IF(Ökoregelungen!G1=\"\",\"\",Ökoregelungen!G1)","v":""},{"$f":"IF(Ökoregelungen!H1=\"\",\"\",Ökoregelungen!H1)","v":""},null,{"$f":"IF(Ökoregelungen!J1=\"\",\"\",Ökoregelungen!J1)","v":""},{"$f":"IF(Ökoregelungen!K1=\"\",\"\",Ökoregelungen!K1)","v":""},null,{"$f":"IF(Ökoregelungen!L1=\"\",\"\",Ökoregelungen!L1)","v":""}]
[{"$f":"IF(Ökoregelungen!A2=\"\",\"\",Ökoregelungen!A2)","v":""},{"$f":"IF(Ökoregelungen!B2=\"\",\"\",Ökoregelungen!B2)","v":"Freiwillige Öko-Regelungen: Zahlungen und Kostenansätze"},null,null,null,null,null,{"$f":"IF(Ökoregelungen!H2=\"\",\"\",Ökoregelungen!H2)","v":"Beträge für das Jahr 2023"},null,null,null,null,{"$f":"IF(Ökoregelungen!L2=\"\",\"\",Ökoregelungen!L2)","v":""}]
[{"$f":"IF(Ökoregelungen!A3=\"\",\"\",Ökoregelungen!A3)","v":""},null,{"$f":"IF(Ökoregelungen!B3=\"\",\"\",Ökoregelungen!B3)","v":""},{"$f":"IF(Ökoregelungen!D3=\"\",\"\",Ökoregelungen!D3)","v":""},{"$f":"IF(Ökoregelungen!E3=\"\",\"\",Ökoregelungen!E3)","v":""},{"$f":"IF(Ökoregelungen!F3=\"\",\"\",Ökoregelungen!F3)","v":""},{"$f":"IF(Ökoregelungen!G3=\"\",\"\",Ökoregelungen!G3)","v":""},{"$f":"IF(Ökoregelungen!H3=\"\",\"\",Ökoregelungen!H3)","v":"Zahlung"},{"$f":"IF(Ökoregelungen!I3=\"\",\"\",Ökoregelungen!I3)","v":"Kosten"},{"$f":"IF(Ökoregelungen!J3=\"\",\"\",Ökoregelungen!J3)","v":"Überschuss"},{"$f":"IF(Ökoregelungen!K3=\"\",\"\",Ökoregelungen!K3)","v":"Überschuss"},null,{"$f":"IF(Ökoregelungen!L3=\"\",\"\",Ökoregelungen!L3)","v":""}]
[{"$f":"IF(Ökoregelungen!A4=\"\",\"\",Ökoregelungen!A4)","v":""},null,{"$f":"IF(Ökoregelungen!B4=\"\",\"\",Ökoregelungen!B4)","v":""},{"$f":"IF(Ökoregelungen!D4=\"\",\"\",Ökoregelungen!D4)","v":""},{"$f":"IF(Ökoregelungen!E4=\"\",\"\",Ökoregelungen!E4)","v":""},{"$f":"IF(Ökoregelungen!F4=\"\",\"\",Ökoregelungen!F4)","v":""},{"$f":"IF(Ökoregelungen!G4=\"\",\"\",Ökoregelungen!G4)","v":""},{"$f":"IF(Ökoregelungen!H4=\"\",\"\",Ökoregelungen!H4)","v":"in €/ha"},null,null,{"$f":"IF(Ökoregelungen!K4=\"\",\"\",Ökoregelungen!K4)","v":"gesamt (€)"},null,{"$f":"IF(Ökoregelungen!L4=\"\",\"\",Ökoregelungen!L4)","v":""}]
[{"$f":"IF(Ökoregelungen!A5=\"\",\"\",Ökoregelungen!A5)","v":""},{"$f":"IF(Ökoregelungen!B5=\"\",\"\",Ökoregelungen!B5)","v":"(1) Bio- diversität"},{"$f":"IF(Ökoregelungen!C5=\"\",\"\",Ökoregelungen!C5)","v":"1a  -  Aufstockung nichtproduktives AL"},{"$f":"IF(Ökoregelungen!D5=\"\",\"\",Ökoregelungen!D5)","v":0},{"$f":"IF(Ökoregelungen!E5=\"\",\"\",Ökoregelungen!E5)","v":"% AL"},{"$f":"IF(Ökoregelungen!F5=\"\",\"\",Ökoregelungen!F5)","v":0},{"$f":"IF(Ökoregelungen!G5=\"\",\"\",Ökoregelungen!G5)","v":"ha"},{"$f":"IF(Ökoregelungen!H5=\"\",\"\",Ökoregelungen!H5)","v":0},{"$f":"IF(Ökoregelungen!I5=\"\",\"\",Ökoregelungen!I5)","v":0},{"$f":"IF(Ökoregelungen!J5=\"\",\"\",Ökoregelungen!J5)","v":0},{"$f":"IF(Ökoregelungen!K5=\"\",\"\",Ökoregelungen!K5)","v":0},null,{"$f":"IF(Ökoregelungen!L5=\"\",\"\",Ökoregelungen!L5)","v":""}]
[{"$f":"IF(Ökoregelungen!A6=\"\",\"\",Ökoregelungen!A6)","v":""},{"$f":"IF(Ökoregelungen!B6=\"\",\"\",Ökoregelungen!B6)","v":""},{"$f":"IF(Ökoregelungen!C6=\"\",\"\",Ökoregelungen!C6)","v":"1b  -  Blühflächen/-streifen auf AL nach 1a"},{"$f":"IF(Ökoregelungen!D6=\"\",\"\",Ökoregelungen!D6)","v":0},{"$f":"IF(Ökoregelungen!E6=\"\",\"\",Ökoregelungen!E6)","v":"ha"},{"$f":"IF(Ökoregelungen!F6=\"\",\"\",Ökoregelungen!F6)","v":0},{"$f":"IF(Ökoregelungen!G6=\"\",\"\",Ökoregelungen!G6)","v":"ha"},{"$f":"IF(Ökoregelungen!H6=\"\",\"\",Ökoregelungen!H6)","v":150},{"$f":"IF(Ökoregelungen!I6=\"\",\"\",Ökoregelungen!I6)","v":0},{"$f":"IF(Ökoregelungen!J6=\"\",\"\",Ökoregelungen!J6)","v":150},{"$f":"IF(Ökoregelungen!K6=\"\",\"\",Ökoregelungen!K6)","v":0},null,{"$f":"IF(Ökoregelungen!L6=\"\",\"\",Ökoregelungen!L6)","v":""}]
[{"$f":"IF(Ökoregelungen!A7=\"\",\"\",Ökoregelungen!A7)","v":""},{"$f":"IF(Ökoregelungen!B7=\"\",\"\",Ökoregelungen!B7)","v":""},{"$f":"IF(Ökoregelungen!C7=\"\",\"\",Ökoregelungen!C7)","v":"1c  -  Blühflächen/-streifen auf DK-Fläche"},{"$f":"IF(Ökoregelungen!D7=\"\",\"\",Ökoregelungen!D7)","v":0},{"$f":"IF(Ökoregelungen!E7=\"\",\"\",Ökoregelungen!E7)","v":"ha"},{"$f":"IF(Ökoregelungen!F7=\"\",\"\",Ökoregelungen!F7)","v":0},{"$f":"IF(Ökoregelungen!G7=\"\",\"\",Ökoregelungen!G7)","v":"ha"},{"$f":"IF(Ökoregelungen!H7=\"\",\"\",Ökoregelungen!H7)","v":150},{"$f":"IF(Ökoregelungen!I7=\"\",\"\",Ökoregelungen!I7)","v":0},{"$f":"IF(Ökoregelungen!J7=\"\",\"\",Ökoregelungen!J7)","v":150},{"$f":"IF(Ökoregelungen!K7=\"\",\"\",Ökoregelungen!K7)","v":0},null,{"$f":"IF(Ökoregelungen!L7=\"\",\"\",Ökoregelungen!L7)","v":""}]
[{"$f":"IF(Ökoregelungen!A8=\"\",\"\",Ökoregelungen!A8)","v":""},{"$f":"IF(Ökoregelungen!B8=\"\",\"\",Ökoregelungen!B8)","v":""},{"$f":"IF(Ökoregelungen!C8=\"\",\"\",Ökoregelungen!C8)","v":"1d  -  Altgrasflächen/-streifen auf DGL"},{"$f":"IF(Ökoregelungen!D8=\"\",\"\",Ökoregelungen!D8)","v":0},{"$f":"IF(Ökoregelungen!E8=\"\",\"\",Ökoregelungen!E8)","v":"% DGL"},{"$f":"IF(Ökoregelungen!F8=\"\",\"\",Ökoregelungen!F8)","v":0},{"$f":"IF(Ökoregelungen!G8=\"\",\"\",Ökoregelungen!G8)","v":"ha"},{"$f":"IF(Ökoregelungen!H8=\"\",\"\",Ökoregelungen!H8)","v":0},{"$f":"IF(Ökoregelungen!I8=\"\",\"\",Ökoregelungen!I8)","v":0},{"$f":"IF(Ökoregelungen!J8=\"\",\"\",Ökoregelungen!J8)","v":0},{"$f":"IF(Ökoregelungen!K8=\"\",\"\",Ökoregelungen!K8)","v":0},null,{"$f":"IF(Ökoregelungen!L8=\"\",\"\",Ökoregelungen!L8)","v":""}]
[{"$f":"IF(Ökoregelungen!A9=\"\",\"\",Ökoregelungen!A9)","v":""},null,{"$f":"IF(Ökoregelungen!B9=\"\",\"\",Ökoregelungen!B9)","v":"(2)    Vielfältige Kulturen im Ackerbau "},{"$f":"IF(Ökoregelungen!D9=\"\",\"\",Ökoregelungen!D9)","v":"nein"},{"$f":"IF(Ökoregelungen!E9=\"\",\"\",Ökoregelungen!E9)","v":""},{"$f":"IF(Ökoregelungen!F9=\"\",\"\",Ökoregelungen!F9)","v":0},{"$f":"IF(Ökoregelungen!G9=\"\",\"\",Ökoregelungen!G9)","v":"ha"},{"$f":"IF(Ökoregelungen!H9=\"\",\"\",Ökoregelungen!H9)","v":45},{"$f":"IF(Ökoregelungen!I9=\"\",\"\",Ökoregelungen!I9)","v":0},{"$f":"IF(Ökoregelungen!J9=\"\",\"\",Ökoregelungen!J9)","v":45},{"$f":"IF(Ökoregelungen!K9=\"\",\"\",Ökoregelungen!K9)","v":0},null,{"$f":"IF(Ökoregelungen!L9=\"\",\"\",Ökoregelungen!L9)","v":""}]
[{"$f":"IF(Ökoregelungen!A10=\"\",\"\",Ökoregelungen!A10)","v":""},null,{"$f":"IF(Ökoregelungen!B10=\"\",\"\",Ökoregelungen!B10)","v":"(3)    Agroforstsysteme auf AL und DGL"},{"$f":"IF(Ökoregelungen!D10=\"\",\"\",Ökoregelungen!D10)","v":0},{"$f":"IF(Ökoregelungen!E10=\"\",\"\",Ökoregelungen!E10)","v":"ha"},{"$f":"IF(Ökoregelungen!F10=\"\",\"\",Ökoregelungen!F10)","v":0},{"$f":"IF(Ökoregelungen!G10=\"\",\"\",Ökoregelungen!G10)","v":"ha"},{"$f":"IF(Ökoregelungen!H10=\"\",\"\",Ökoregelungen!H10)","v":60},{"$f":"IF(Ökoregelungen!I10=\"\",\"\",Ökoregelungen!I10)","v":0},{"$f":"IF(Ökoregelungen!J10=\"\",\"\",Ökoregelungen!J10)","v":60},{"$f":"IF(Ökoregelungen!K10=\"\",\"\",Ökoregelungen!K10)","v":0},null,{"$f":"IF(Ökoregelungen!L10=\"\",\"\",Ökoregelungen!L10)","v":""}]
[{"$f":"IF(Ökoregelungen!A11=\"\",\"\",Ökoregelungen!A11)","v":""},null,{"$f":"IF(Ökoregelungen!B11=\"\",\"\",Ökoregelungen!B11)","v":"(4)    Extensivierung DGL insges."},{"$f":"IF(Ökoregelungen!D11=\"\",\"\",Ökoregelungen!D11)","v":"nein"},{"$f":"IF(Ökoregelungen!E11=\"\",\"\",Ökoregelungen!E11)","v":""},{"$f":"IF(Ökoregelungen!F11=\"\",\"\",Ökoregelungen!F11)","v":0},{"$f":"IF(Ökoregelungen!G11=\"\",\"\",Ökoregelungen!G11)","v":"ha"},{"$f":"IF(Ökoregelungen!H11=\"\",\"\",Ökoregelungen!H11)","v":115},{"$f":"IF(Ökoregelungen!I11=\"\",\"\",Ökoregelungen!I11)","v":0},{"$f":"IF(Ökoregelungen!J11=\"\",\"\",Ökoregelungen!J11)","v":115},{"$f":"IF(Ökoregelungen!K11=\"\",\"\",Ökoregelungen!K11)","v":0},null,{"$f":"IF(Ökoregelungen!L11=\"\",\"\",Ökoregelungen!L11)","v":""}]
[{"$f":"IF(Ökoregelungen!A12=\"\",\"\",Ökoregelungen!A12)","v":""},null,{"$f":"IF(Ökoregelungen!B12=\"\",\"\",Ökoregelungen!B12)","v":"(5)    4-Kennarten DGL"},{"$f":"IF(Ökoregelungen!D12=\"\",\"\",Ökoregelungen!D12)","v":0},{"$f":"IF(Ökoregelungen!E12=\"\",\"\",Ökoregelungen!E12)","v":"ha"},{"$f":"IF(Ökoregelungen!F12=\"\",\"\",Ökoregelungen!F12)","v":0},{"$f":"IF(Ökoregelungen!G12=\"\",\"\",Ökoregelungen!G12)","v":"ha"},{"$f":"IF(Ökoregelungen!H12=\"\",\"\",Ökoregelungen!H12)","v":240},{"$f":"IF(Ökoregelungen!I12=\"\",\"\",Ökoregelungen!I12)","v":0},{"$f":"IF(Ökoregelungen!J12=\"\",\"\",Ökoregelungen!J12)","v":240},{"$f":"IF(Ökoregelungen!K12=\"\",\"\",Ökoregelungen!K12)","v":0},null,{"$f":"IF(Ökoregelungen!L12=\"\",\"\",Ökoregelungen!L12)","v":""}]
[{"$f":"IF(Ökoregelungen!A13=\"\",\"\",Ökoregelungen!A13)","v":""},{"$f":"IF(Ökoregelungen!B13=\"\",\"\",Ökoregelungen!B13)","v":"(6) PSM-Verzicht"},{"$f":"IF(Ökoregelungen!C13=\"\",\"\",Ökoregelungen!C13)","v":"auf Sommerungen"},{"$f":"IF(Ökoregelungen!D13=\"\",\"\",Ökoregelungen!D13)","v":0},{"$f":"IF(Ökoregelungen!E13=\"\",\"\",Ökoregelungen!E13)","v":"ha"},{"$f":"IF(Ökoregelungen!F13=\"\",\"\",Ökoregelungen!F13)","v":0},{"$f":"IF(Ökoregelungen!G13=\"\",\"\",Ökoregelungen!G13)","v":"ha"},{"$f":"IF(Ökoregelungen!H13=\"\",\"\",Ökoregelungen!H13)","v":130},{"$f":"IF(Ökoregelungen!I13=\"\",\"\",Ökoregelungen!I13)","v":0},{"$f":"IF(Ökoregelungen!J13=\"\",\"\",Ökoregelungen!J13)","v":130},{"$f":"IF(Ökoregelungen!K13=\"\",\"\",Ökoregelungen!K13)","v":0},null,{"$f":"IF(Ökoregelungen!L13=\"\",\"\",Ökoregelungen!L13)","v":""}]
[{"$f":"IF(Ökoregelungen!A14=\"\",\"\",Ökoregelungen!A14)","v":""},{"$f":"IF(Ökoregelungen!B14=\"\",\"\",Ökoregelungen!B14)","v":""},{"$f":"IF(Ökoregelungen!C14=\"\",\"\",Ökoregelungen!C14)","v":"auf Ackerfutter"},{"$f":"IF(Ökoregelungen!D14=\"\",\"\",Ökoregelungen!D14)","v":0},{"$f":"IF(Ökoregelungen!E14=\"\",\"\",Ökoregelungen!E14)","v":"ha"},{"$f":"IF(Ökoregelungen!F14=\"\",\"\",Ökoregelungen!F14)","v":0},{"$f":"IF(Ökoregelungen!G14=\"\",\"\",Ökoregelungen!G14)","v":"ha"},{"$f":"IF(Ökoregelungen!H14=\"\",\"\",Ökoregelungen!H14)","v":50},{"$f":"IF(Ökoregelungen!I14=\"\",\"\",Ökoregelungen!I14)","v":0},{"$f":"IF(Ökoregelungen!J14=\"\",\"\",Ökoregelungen!J14)","v":50},{"$f":"IF(Ökoregelungen!K14=\"\",\"\",Ökoregelungen!K14)","v":0},null,{"$f":"IF(Ökoregelungen!L14=\"\",\"\",Ökoregelungen!L14)","v":""}]
[{"$f":"IF(Ökoregelungen!A15=\"\",\"\",Ökoregelungen!A15)","v":""},{"$f":"IF(Ökoregelungen!B15=\"\",\"\",Ökoregelungen!B15)","v":""},{"$f":"IF(Ökoregelungen!C15=\"\",\"\",Ökoregelungen!C15)","v":"auf Dauerkulturen"},{"$f":"IF(Ökoregelungen!D15=\"\",\"\",Ökoregelungen!D15)","v":0},{"$f":"IF(Ökoregelungen!E15=\"\",\"\",Ökoregelungen!E15)","v":"ha"},{"$f":"IF(Ökoregelungen!F15=\"\",\"\",Ökoregelungen!F15)","v":0},{"$f":"IF(Ökoregelungen!G15=\"\",\"\",Ökoregelungen!G15)","v":"ha"},{"$f":"IF(Ökoregelungen!H15=\"\",\"\",Ökoregelungen!H15)","v":130},{"$f":"IF(Ökoregelungen!I15=\"\",\"\",Ökoregelungen!I15)","v":0},{"$f":"IF(Ökoregelungen!J15=\"\",\"\",Ökoregelungen!J15)","v":130},{"$f":"IF(Ökoregelungen!K15=\"\",\"\",Ökoregelungen!K15)","v":0},null,{"$f":"IF(Ökoregelungen!L15=\"\",\"\",Ökoregelungen!L15)","v":""}]
[{"$f":"IF(Ökoregelungen!A16=\"\",\"\",Ökoregelungen!A16)","v":""},null,{"$f":"IF(Ökoregelungen!B16=\"\",\"\",Ökoregelungen!B16)","v":"(7)    Natura 2000 angepasste Bewirtschaftung"},{"$f":"IF(Ökoregelungen!D16=\"\",\"\",Ökoregelungen!D16)","v":""},{"$f":"IF(Ökoregelungen!E16=\"\",\"\",Ökoregelungen!E16)","v":""},{"$f":"IF(Ökoregelungen!F16=\"\",\"\",Ökoregelungen!F16)","v":0},{"$f":"IF(Ökoregelungen!G16=\"\",\"\",Ökoregelungen!G16)","v":"ha"},{"$f":"IF(Ökoregelungen!H16=\"\",\"\",Ökoregelungen!H16)","v":40},{"$f":"IF(Ökoregelungen!I16=\"\",\"\",Ökoregelungen!I16)","v":0},{"$f":"IF(Ökoregelungen!J16=\"\",\"\",Ökoregelungen!J16)","v":40},{"$f":"IF(Ökoregelungen!K16=\"\",\"\",Ökoregelungen!K16)","v":0},null,{"$f":"IF(Ökoregelungen!L16=\"\",\"\",Ökoregelungen!L16)","v":""}]
[{"$f":"IF(Ökoregelungen!A17=\"\",\"\",Ökoregelungen!A17)","v":""},null,{"$f":"IF(Ökoregelungen!B17=\"\",\"\",Ökoregelungen!B17)","v":"Summen aus Inanspruchnahme der ÖR-Maßnahmen"},null,null,null,null,null,null,{"$f":"IF(Ökoregelungen!J17=\"\",\"\",Ökoregelungen!J17)","v":""},{"$f":"IF(Ökoregelungen!K17=\"\",\"\",Ökoregelungen!K17)","v":0},null,{"$f":"IF(Ökoregelungen!L17=\"\",\"\",Ökoregelungen!L17)","v":""}]
[{"$f":"IF(Ökoregelungen!A18=\"\",\"\",Ökoregelungen!A18)","v":""},null,{"$f":"IF(Ökoregelungen!B18=\"\",\"\",Ökoregelungen!B18)","v":""},{"$f":"IF(Ökoregelungen!D18=\"\",\"\",Ökoregelungen!D18)","v":""},{"$f":"IF(Ökoregelungen!E18=\"\",\"\",Ökoregelungen!E18)","v":""},{"$f":"IF(Ökoregelungen!F18=\"\",\"\",Ökoregelungen!F18)","v":""},{"$f":"IF(Ökoregelungen!G18=\"\",\"\",Ökoregelungen!G18)","v":""},{"$f":"IF(Ökoregelungen!H18=\"\",\"\",Ökoregelungen!H18)","v":""},null,{"$f":"IF(Ökoregelungen!J18=\"\",\"\",Ökoregelungen!J18)","v":""},{"$f":"IF(Ökoregelungen!K18=\"\",\"\",Ökoregelungen!K18)","v":""},null,{"$f":"IF(Ökoregelungen!L18=\"\",\"\",Ökoregelungen!L18)","v":""}]

{"sheet":"Vorlage Einstieg","index":5,"n_rows":12,"n_cols":3,"rows_kept":12,"cut":false,"hidden":false,"merged":[[11,1,11,6],[10,1,10,6],[9,1,9,6],[8,1,8,6],[6,2,6,6]]}
[]
[null,"GAP - Prämienrechner Bayern"]
[null,"Bayerische Landesanstalt für Landwirtschaft"]
[null,"Copyright 2022 Institut für Agrarökonomie"]
[null,"                            Agrarökonomie@lfl.bayern.de, Tel.: 08161 8640-1111                   "]
[]
[null,"Wichtig:","Die nachfolgend genannten Regelungen stehen unter dem Genehmigungsvorbehalt durch die EU-KOM. Derzeit besteht keine Rechtssicherheit, weil sich im Rahmen dieses Genehmigungsverfahrens noch Änderungen bei den genannten Regelungen ergeben können.\n\nDie Ausnahmeregelungen zur Aussetzung von GLÖZ 7 und GLÖZ 8 im Jahr 2023 können nicht berücksichtigt werden."]
[]
[null,"Der Prämienrechner besteht aus den Teilen \"Direktzahlungen mit den Konditionalitäten\" und den \"Ökoregelungen\" unter Berücksichtigung von Kostenansätzen."]
[null,"Grüne Zellen: Hier können die betriebsindividuellen Werte für die Berechnung der Zahlungen und der ggf. entstehenden Kosten eingetragen werden."]
[]
[null,"Das Ergebnis wird auf einer DIN A 4 Seite zusammengestellt und kann als PDF ausgedruck und/oder gespeichert werden."]

{"sheet":"Parameter","index":6,"n_rows":12,"n_cols":9,"rows_kept":12,"cut":false,"hidden":false,"merged":[]}
[null,"ja"]
[null,"nein"]
[]
["Formel","Fenster","Zeile","Spalte","IDB","F_FB","Z_FB","S_FB"]
[1,4,{"$f":"ROW(Formeln!C20)","v":20},{"$f":"COLUMN(Formeln!C20)","v":3},1,3,{"$f":"ROW(Ökoregelungen!I5)","v":5},{"$f":"COLUMN(Ökoregelungen!I5)","v":9},{"$f":"Formeln!M20","v":"1a  -  Aufstockung nichtproduktives AL"}]
[2,4,{"$f":"ROW(Formeln!C51)","v":51},{"$f":"COLUMN(Formeln!C51)","v":3},1,2,{"$f":"ROW(Direktzahlungen!L9)","v":9},{"$f":"COLUMN(Direktzahlungen!L9)","v":12},{"$f":"Direktzahlungen!K9","v":"GLÖZ 8    Brache (4% des AL)"}]
[3,4,{"$f":"ROW(Formeln!C82)","v":82},{"$f":"COLUMN(Formeln!C82)","v":3},1,2,{"$f":"ROW(Direktzahlungen!M9)","v":9},{"$f":"COLUMN(Direktzahlungen!M9)","v":13},{"$f":"Direktzahlungen!K9","v":"GLÖZ 8    Brache (4% des AL)"}]
[4,4,{"$f":"ROW(Formeln!C113)","v":113},{"$f":"COLUMN(Formeln!C113)","v":3},1,2,{"$f":"ROW(Direktzahlungen!M11)","v":11},{"$f":"COLUMN(Direktzahlungen!M11)","v":13}]
[5,4,{"$f":"ROW(Formeln!C144)","v":144},{"$f":"COLUMN(Formeln!C144)","v":3},1,2,{"$f":"ROW(Direktzahlungen!M12)","v":12},{"$f":"COLUMN(Direktzahlungen!M12)","v":13}]
[6,4,{"$f":"ROW(Formeln!C175)","v":175},{"$f":"COLUMN(Formeln!C175)","v":3},1,2,{"$f":"ROW(Direktzahlungen!M13)","v":13},{"$f":"COLUMN(Direktzahlungen!M13)","v":13}]
[7,4,{"$f":"ROW(Formeln!C56)","v":56},{"$f":"COLUMN(Formeln!C56)","v":3},1,2,{"$f":"ROW(Direktzahlungen!M14)","v":14},{"$f":"COLUMN(Direktzahlungen!M14)","v":13}]
[8,4,{"$f":"ROW(Formeln!C57)","v":57},{"$f":"COLUMN(Formeln!C57)","v":3},1,2,{"$f":"ROW(Direktzahlungen!M15)","v":15},{"$f":"COLUMN(Direktzahlungen!M15)","v":13}]

{"sheet":"Konditionalität","index":7,"n_rows":13,"n_cols":8,"rows_kept":13,"cut":false,"hidden":false,"merged":[]}
[]
[]
[null,"Kosten für Erfüllung der Konditionalität ",null,null,null,"ha","Kosten € je ha","Kosten € je Betrieb"]
[null,"GLÖZ 1","Erhalt von Dauergrünland",null,null,{"$f":"#REF!","v":{"$error":"#REF!"}},200,{"$f":"+F4*G4","v":{"$error":"#REF!"}}]
[null,"GLÖZ 2","Schutz von Feuchtgebieten und Mooren",null,null,1,200,200]
[null,"GLÖZ 3","Pufferstreifen an Gewässerläufen",null,null,null,null,0]
[null,"GLÖZ 4",null,null,null,null,200,0]
[null,"GLÖZ 5",null,null,null,null,null,0]
[null,"GLÖZ 6","Mindestbodenbedeckung",null,null,1,200,200]
[null,"GLÖZ 7","Fruchtwechsel",null,null,1,200,200]
[null,"GLÖZ 8","Brache (4% des AL)",null,null,{"$f":"+Direktzahlungen!C9*0.04","v":0},700,0]
[null,"GLÖZ 9","Dauergrünland in Natura-2000-Gebieten",null,null,1,200,200]
[null,"Summe Kosten für Erfüllung der Konditionalität ",null,null,null,null,null,{"$f":"SUM(H4:H12)","v":{"$error":"#REF!"}}]

{"sheet":"Hilfe","index":8,"n_rows":59,"n_cols":6,"rows_kept":59,"cut":false,"hidden":false,"merged":[]}
[1,"Bedingung: Keine Abgabe von Milch oder Milchprodukten im Betrieb, mind. 3 Tiere",null,70]
[2,"mind. 6 Tiere, mind. 10 Monate alt",null,70]
[3,"Nur soweit die GLÖZ-Vorschriften ab 2023 über die 2021 geltenden hinausgehen!",null,70]
[4,"Rechtsgrundlagen:\n\n- Gesetz zur Durchführung der im Rahmen der Gemeinsamen Agrarpolitik geltenden Konditionalität (GAP-Konditionalitäten-Gesetz – GAPKondG)\n\n- Verordnung zur Durchführung der im Rahmen der Gemeinsamen Agrarpolitik geltenden Konditionalität (GAP-Konditionalitäten-Verordnung – GAPKondV)","GLÖZ 1",180]
[5,"GLÖZ 5: Ackerland (AL) in ha des Betriebes. ","GLÖZ 5",60]
[6,{"$f":"E6&\" \"&F6","v":"Die notwendige Fläche für den Fruchtwechsel ist der Umfang des Ackerlandes ohne Landschaftselemente und Pufferstreifen auf Ackerland. Kein Fruchtwechsel gemäß GLÖZ 7 ist notwendig, wenn es sich um einen Ökobetrieb handelt oder wenn gleichzeitig die LF maximal 50 ha und der Grünlandanteil mindestens 75% umfasst. \n\nDie Daten Ihres Betriebes: \n          Ökobetrieb: nein\n          AL: 0 ha,\n          LF: 0 ha,\n          Grünlandanteil: 0 %"},"GLÖZ 7",200,"Die notwendige Fläche für den Fruchtwechsel ist der Umfang des Ackerlandes ohne Landschaftselemente und Pufferstreifen auf Ackerland. Kein Fruchtwechsel gemäß GLÖZ 7 ist notwendig, wenn es sich um einen Ökobetrieb handelt oder wenn gleichzeitig die LF maximal 50 ha und der Grünlandanteil mindestens 75% umfasst.",{"$f":"\"\n\nDie Daten Ihres Betriebes: \n          Ökobetrieb: \"&Direktzahlungen!H7&\"\n          AL: \"&Direktzahlungen!C3&\" ha,\n\"&\"          LF: \"&Direktzahlungen!C9&\" ha,\n\"&\"          Grünlandanteil: \"&IF(Direktzahlungen!C9=0,0,ROUND(Direktzahlungen!C7/Direktzahlungen!C9*100,2))&\" %\"","v":"\n\nDie Daten Ihres Betriebes: \n          Ökobetrieb: nein\n          AL: 0 ha,\n          LF: 0 ha,\n          Grünlandanteil: 0 %"}]
[7,{"$f":"E7&\" \"&F7","v":"Die stillzulegende Fläche umfasst 4% des Ackerlandes ohne die Fläche für Landschaftselemente und Pufferstreifen auf Ackerland. Kein Ackerland muss stillgelegt werden,  wenn entweder das Ackerland maximal 10 ha oder gleichzeitig die LF maximal 50 ha und der Grünlandanteil mindestens 75% umfasst. \n\nDie Daten Ihres Betriebes: \n          AL: 0 ha,\n          LF: 0 ha,\n          Grünlandanteil: 0 %"},"GLÖZ 8",180,"Die stillzulegende Fläche umfasst 4% des Ackerlandes ohne die Fläche für Landschaftselemente und Pufferstreifen auf Ackerland. Kein Ackerland muss stillgelegt werden,  wenn entweder das Ackerland maximal 10 ha oder gleichzeitig die LF maximal 50 ha und der Grünlandanteil mindestens 75% umfasst.",{"$f":"\"\n\nDie Daten Ihres Betriebes: \n          AL: \"&Direktzahlungen!C3&\" ha,\n\"&\"          LF: \"&Direktzahlungen!C9&\" ha,\n\"&\"          Grünlandanteil: \"&IF(Direktzahlungen!C9=0,0,ROUND(Direktzahlungen!C7/Direktzahlungen!C9*100,2))&\" %\"","v":"\n\nDie Daten Ihres Betriebes: \n          AL: 0 ha,\n          LF: 0 ha,\n          Grünlandanteil: 0 %"}]
[8,"GLÖZ 9: ha LF des Betriebes in Schutzgebieten",null,60]
[9,"1. Januar bis 31. August\n\na) Sommergetreide, einschließlich Mais,\nb) Leguminosen, einschließlich Gemenge, außer Ackerfutter,\nc) Sommer-Ölsaaten,\nd) Hackfrüchte,\ne) Feldgemüse",null,160]
[10,"1. Januar bis 15. November\n\nDieser Zeitraum endet mit dem Zeitpunkt der letzten Ernte im Antragsjahr, sofern nach der Ernte im Antragsjahr eine Bodenbearbeitung zur Vorbereitung des Anbaus einer Folgekul-tur erfolgt, jedoch frühestens mit dem 31. August.",null,160]
[11,"1. Januar bis 15. November",null,70]
[12,"GLÖZ 2: ha LF des Betriebes auf Moorstandorten. \n\nWenn Kosten/ha = 0, keine Flächenangabe notwendig",null,80]
[13,"GLÖZ 3: Getreidefläche des Betriebes.\n\nWenn Kosten/ha = 0, keine Flächenangabe notwendig ",null,80]
[14,"GLÖZ 4:\n \nFläche Pufferstreifen = Dauergrünland + Ackerfutterbau (nur Grünfutterpflanzen, Leguminosen und Mischungen; d.h. kein Mais, Futterrüben, etc.)\n\nWenn Kosten/ha = 0, keine Flächenangabe notwendig. ",null,130]
[{"$f":"A14+1","v":15},"GLÖZ 6:\n\nMindestbodenbedeckung auf mindestens 80 Prozent der Ackerflächen eines Betriebes. Ausnahmen für Aussaat einer frühen Sommerkultur.\n",null,100]
[{"$f":"A15+1","v":16},"GLÖZ 8: \n\nDer Landwirt ist verpflichtet, mindestens 4 % des Ackerlands des Betriebes als nichtproduktive Fläche oder als Landschaftselemente vorzuhalten.\n\nDer Wert entspricht 4% des bei den Betriebsdaten eingetragenen Ackerlandes (AL) abzüglich der dort eingetragenen Fläche für \"Landschaftselemente und Pufferstreifen auf AL\".\n\nDer Betrieb ist allerdings von Verpflichtungen dieses GLÖZ-Standards ausgenommen (Wert = 0), wenn \nAckerkland (AL) < 10 ha \noder \n(LF < 50 ha und (Anteil DG + Gras-, Grünfutterpflanzen + Brachen + Leguminosen) > 75% der LF)",null,260]
[17,"GLÖZ 7: \n\nDer Landwirt ist verpflichtet, ab 2023 auf jeder landwirtschaftlichen Parzelle des Ackerlands seines Betriebes auf 33 % seiner AF eine andere Hauptkultur als im Vorjahr, auf weiteren 33 % eine andere Hauptkultur oder Zwischenfrucht oder Untersaat und auf der restlichen AF im 3. Jahr die Hauptkultur zu wechseln.\n\nDer Wert entspricht der bei den Betriebsdaten eingetragenen Fläche für \"Ackerland (AL) ohne Fruchtwechsel\".\n \nDer Betrieb ist allerdings von Verpflichtungen dieses GLÖZ-Standards ausgenommen (Wert = 0), wenn \nÖkobetrieb \noder \nAckerkland (AL) < 10 ha \noder \n(LF < 50 ha und (Anteil DG + Gras-, Grünfutterpflanzen + Brachen + Leguminosen) > 75% der LF)",null,300]
[18,"GLÖZ 9: \n\nha LF des Betriebes in Schutzgebieten",null,80]
[19,"GLÖZ 1: i.d.R. entstehen im Vergleich zu 2021 keine zusätzlichen Kosten",null,70]
[20,"GLÖZ 2: i.d.R. entstehen im Vergleich zu 2021 keine zusätzlichen Kosten, lediglich ein Grünlandumbruch zur Grasnarbenerneuerung ist nicht mehr möglich. Sollte dies tatsächlich notwendig sein, sind hier die Kosten der Ertragsnachteile (z. B. bewertet mit dem Substitutions- bzw. Veredelungswert) abzügl. der eingesparten Kosten der Grünlanderneuerung anzusetzen.",null,120]
[21,"GLÖZ 3: ist in Bayern nicht üblich, i.d.R. entstehen im Vergleich zu 2021 keine zusätzlichen Kosten",null,70]
[22,"GLÖZ 4: Ist in Bayern nur für Grünland und Ackerfutterbau (ohne Mais, Futterrüben etc. von Bedeutung) relevant. \n\nBei Grünland können die Kosten je ha z.B. mit dem Internet-DB bestimmt werden: Vergleich der Kosten und Erträge (z.B. in MJ NEL) einer Wiese mit betriebsüblicher Intensität und einer ungedüngten Wiese. Die Kosten der Extensivierung ergeben sich aus dem bewerteten Futterertragsrückgang (meistens wird dieser durch KF ausgeglichen werden können, da i.d.R. nur ein geringer Flächenanteil betroffen sein wird, so dass eine Erhöhung des KF-Anteils in der Ration ernährungsphysiologisch möglich sein müsste) ",null,180]
[23,"GLÖZ 5: i.d.R. entstehen im Vergleich zu 2021 keine zusätzlichen Kosten",null,70]
[24,"GLÖZ 6: \n\nBetrifft nur Betriebe mit Winterfurche. Mögliche Anpassungsreaktionen sind Stoppelbrache oder Zwischenfruchtanbau (oder eine Änderung des Anbaus auf den betroffenen Flächen – hier können die Kosten mit Hilfe des Internet-DB berechent werden). \nBei den Kosten je ha sind – je nach Konstellation – die Kosten für den Zwischenfruchtanbau, mögliche zusätzliche Kosten bei der Unkrautbekämpfung (bei Stoppelbrache oder Mulchauflage), zusätzliche Maschinenkosten bzw.  evtl. auftretende Terminkosten infolge verspäteter Aussaat zu berücksichtigen. Die Kosten des Zwischenfruchtanbaus können mit dem Internet-DB berechnet werden.",null,235]
[25,"GLÖZ 7: Kosten entstehen grundsätzlich nur, wenn durch GLÖZ 7 betriebliche Änderungen erforderlich sind.",null,80]
[26,"GLÖZ 9: i.d.R. entstehen im Vergleich zu 2021 keine zusätzlichen Kosten, lediglich ein Grünlandumbruch zur Grasnarbenerneuerung ist nicht mehr möglich. Sollte dies tatsächlich notwendig sein, sind hier die Kosten der Ertragsnachteile (z. B. Bewertet mit dem Substitutions- bzw. Veredelungswert) abzügl. der eingesparten Kosten der Grünlanderneuerung anzusetzen. ",null,120]
[27,"Die Kosten müssen betriebsindividuell festgelegt werden, je ha kann mit Kosten von 120 bis 180 EUR gerechnet werden.",null,70]
[28,"Die Kosten müssen betriebsindividuell festgelegt werden.",null,70]
[29,"Die Kosten müssen betriebsindividuell festgelegt werden. Die Kosten je ha können z.B. mit dem Internet-DB bestimmt werden: Vergleich der Kosten und Erträge (z.B. in MJ NEL) einer Wiese mit betriebsüblicher Intensität und des Altgrasstreifens. Die Kosten des Altgrasstreifens ergeben sich aus dem bewerteten Futterertragsrückgang (meistens wird dieser durch KF ausgeglichen werden können, da i.d.R. nur ein geringer Flächenanteil betroffen sein wird, so dass eine Erhöhung des KF-Anteils in der Ration ernährungsphysiologisch möglich sein müsste) abzüglich der eingesparten Kosten bei der Grünlandbewirtschaftung. ",null,180]
[30,"Die Kosten müssen betriebsindividuell festgelegt werden. Maßgeblich ist der Unterschied des derzeitigen Fruchtfolgedeckungsbeitrags und des Fruchtfolgedeckungsbeitrags bei „vielfälter Fruchtfolge“. I.d.R. liegen die Kosten nur bei extensiven Fruchtfolgen unterhalb der Zahlung.",null,120]
[31,"Die Kosten müssen betriebsindividuell festgelegt werden.",null,70]
[32,"Die Kosten müssen betriebsindividuell festgelegt werden. Bei einem derzeitigen Viehbesatz von 1,4 GV/ha DL entstehen keine Kosten (soweit das DGL nicht mineralisch gedüngt wird und nur betriebseigener Wirtschaftsdünger ausgebracht wird). Bei höherem Viehbesatz ist eine Abstockung des Viehbestandes notwendig. Die Kosten sind dabei umso höher, je (1) höher der derzeitige Viehbesatz ist und (2) je höher der Deckungsbeitrag in der Tierhaltung (Raufutterfresser) ist. Bspw. übersteigt bei eine Abstockung einer Mutterkuhherde von 1,5 GV/ha auf 1,4 GV/ha die Zahlung i.d.R. die Kosten. Bei Milchkuhherden mit >2,0  bis 2,5 GV/ha ist davon auszugehen dass die Kosten der Bestandsabstockung höher sind als die Zahlung. In jedem Falle sind hier umfangreiche Berechnungen vorzunehmen. Bei Betrieben die Grundfutter ausschließlich auf Grünland produzieren kann der Internet-DB hier hilfreich sein. Bei Grundfutterrationen, die aus Ackerfutterbau und Grünlandnutzung stammen ist die Berechnung des Viehbesatzes ja ha DL (noch) unklar.",null,260]
[33,"Auf extensiven, naturnahmen Standorten wie z.B. extensiven Standweiden, ein bis zweischürigen Wiesen oder Almen bzw. Alpen treten die Kennarten  i.d.R. bereits auf. Zusätzliche Kosten entstehen hier nicht. Auf (sehr) intensiven Wiesen und Weiden sind u.U. sehr umfangreiche (und kostenintensive) Bewirtschaftungsänderungen erforderlich. Die Kosten müssen betriebsindividuell festgelegt werden.",null,140]
[34,"Hier sind der erwartete Ertrags- und Qualitätsrückgang zu bewerten sowie mögliche zusätzliche Kosten einer mechanischen Unkrautbekämpfung zu berücksichtigen. Auf der anderen Seite können beim chem. Pflanzschutz Kosten (Kosten für PSM, variable Maschinenkosten der PSM-Ausbringung) eingespart werden. Evtl. kann ein Wechsel auf resistentere Kulturen/Sorten die Kosten senken, allerdings sind dann möglichrweise niedrigere Erlöse zu berücksichtigen (z.B. Hafer statt Braugerste).",null,150]
[35,"Die Kosten müssen betriebsindividuell festgelegt werden.",null,70]
[36,"(a) nichtproduktive Flächen auf Ackerland über den verpflichtenden Anteil (4 %) hinaus:\n\n- Maximal 6% des Ackerlandes;\n- Nichtproduktive Fläche muss mind. 0,1 ha groß sein;\n- Fläche muss brachliegen, Selbstbegrünung oder Begrünung durch Aussaat;\n- keine Düngemittel, kein Pflanzenschutz\n- ab 15.08. des Antragsjahres Vorbereitung zur Aussaat für Ernte im darauffolgenden Jahr bzw. Beweidung durch Schafe und Ziegen",null,190]
[37,"(b) Anlage von Blühstreifen oder Blühflächen auf Ackerland, das der Betriebsinhaber nach (a) bereitstellt\n\n- Blühstreifen, -fläche mind. 0,1 ha\n- Blühstreifen mit mind. 20 m Breite, über 30 m hinausgehende Breite nicht förderfähig \n- Blühfläche (= nicht streifenförmige Fläche) Maximalgröße 1 ha je Blühfläche\nSaatgutmischungen vorgeschrieben;\n- keine Düngung, kein Pflanzenschutz\n- Fläche kann nach Antragsjahr erneut beantragt werden ohne erneute Aussaat\n- Aussaat bis 15. Mai\n- ab 01. September Bodenbearbeitung für Folgekultur möglich (nicht mehr im Antragsjahr zu ernten!)",null,230]
[38,"(c) Anlage von Blühstreifen oder Blühflächen in Dauerkulturen\n \nSiehe 1 (b) jedoch keine Mindestgröße und keine Mindest- und Maximalbreite",null,100]
[39,"(d) Altgrasstreifen oder -flächen in Dauergrünland\n \n- Mind. 1 % des förderfähigen Dauergrünlands, max. 6 % einer förderfähigen Dauergrünlands des Betriebes\n- Mind. 10 % und max. 20 % einer förderfähigen Dauergrünlandfläche\n- Mindestgröße 0,1 ha; höchstens 2 Jahre an der gleichen Stelle\n- keine Beweidung oder Schnittnutzung vor dem 01. September",null,200]
[40,"Anbau vielfältiger Kulturen mit mind. 5 Hauptfruchtarten im Ackerbau einschl. des Anbaus von Leguminosen mit einem Mindestanteil von 10 %\n \n- Jede Hauptfruchtart mind. 10 % und höchstens 30 % des förderfähigen Ackerlandes\n- Anteil von Getreide max. 66 %",null,140]
[41,"Beibehaltung einer agroforstlichen Bewirtschaftungsweise auf Ackerland oder Dauergrünland\n  \n- Flächenanteil der Gehölzstreifen an einer förderfähigen Ackerland- oder Dauergrünlandfläche muss zwischen 2 und 35 Prozent betragen;\n- mind. 2 Gehölzstreifen; \n- Breite der einzelnen Gehölzstreifen muss zwischen 3 und 25 Meter betragen;\n- der Abstand zwischen zwei Gehölzstreifen sowie zwischen einem Gehölzstreifen und dem Rand der Fläche muss zwischen 20 und 100 Meter betragen;\n- Holzernte im Antragsjahr nur Januar, Februar und Dezember möglich",null,230]
[42,"Extensivierung des gesamten Dauergrünlandes des Betriebes\n \n- Viehbesatz mind. 0,3 RGV, höchstens 1,4 RGV je ha förderfähiges Dauergrünland\n- keine Anwendung von Pflanzenschutz;\n- Die Verwendung von Düngemitteln einschließlich Wirtschaftsdüngern ist nur in dem Umfang erlaubt, der dem Dunganfall von höchstens 1,4 RGV je ha förderfähiges Dauergrünland des Betriebs entspricht;",null,220]
[43,"Ergebnisorientierte extensive Bewirtschaftung von Dauergrünland mit Nachweis von mind. 4 regionalen Kennarten\n \n- Liste der Kennarten oder Kennartengruppe des artenreichen Grünlands;\n- Nachweis nach festgelegter Methode",null,140]
[44,"Sommergetreide einschl. Mais, Leguminosen einschl. Gemenge ohne Ackerfutter, Sommer-Ölsaaten, Hackfrüchte, Gemüse und Dauerkulturen.\n\nÖkolandwirte können diese Regelung nicht wählen.",null,100]
[45,"Die Anwendung von durch die Schutzziele bestimmter Landbewirtschaftungsmethoden auf landwirtschaftlichen Flächen in Natura 2000-Gebieten\n \n- Im Antragsjahr keine zusätzlichen Entwässerungsmaßnahmen und keine Instandsetzung bestehender Anlagen zur Absenkung von Grundwasser oder zur Drainage\n- keine Auffüllungen, Aufschüttungen oder Abgrabungen vorgenommen werden, es sei denn, es handelt sich um eine von einer für Naturschutz zuständigen Behörde genehmigte, angeordnete oder durchgeführte Maßnahme.",null,230]
[46,"Relevant für GLÖZ 7: Der Landwirt ist verpflichtet, ab 2023 auf jeder landwirtschaftlichen Parzelle des Ackerlands seines Betriebes auf 33 % seiner AF eine andere Hauptkultur als im Vorjahr, auf weiteren 33 % eine andere Hauptkultur oder Zwischenfrucht oder Untersaat und auf der restlichen AF im 3. Jahr die Hauptkultur zu wechseln.\n\n\"Ackerland (AL) ohne Fruchtwechsel\" ist die Fläche (ha) der Parzellen, die diese Bedingung bisher nicht erfüllen.\n\nAusnahmen siehe auch §18 der GAP-Konditionalitäten-Verordnung – GAPKondV",null,200]
[47,null,null,70]
[48,null,null,70]
[49,null,null,70]
[50,null,null,70]
[51,null,null,70]
[52,null,null,70]
[53,null,null,70]
[54,null,null,70]
[55,null,null,70]
[56,null,null,70]
[57,null,null,70]
[58,null,null,70]
[59,null,null,70]

{"sheet":"Rech_öko","index":9,"n_rows":15,"n_cols":11,"rows_kept":15,"cut":false,"hidden":false,"merged":[]}
["Eco-scemes",null,null,"Einheit",">","<=",null,2023,2024,2025,2026]
["1a","Stufe 1","<=1%","€/ha",9.9999999000000006E-2,{"$f":"B6*0.01","v":0},{"$f":"IF(F6>E2,MIN(F2,F6),0)","v":0},1300]
[null,"Stufe 2",">1% und <=2%","€/ha",{"$f":"B6*0.01","v":0},{"$f":"B6*0.02","v":0},{"$f":"IF(F6>E2,MIN(F3,F6-G2),0)","v":0},500]
[null,"Stufe 3",">2% und <= 6%","€/ha",{"$f":"B6*0.02","v":0},{"$f":"B6*0.06","v":0},{"$f":"IF(F6>E2,F6-G3-G2,0)","v":0},300]
[null,null,">=0,1 ha",null,null,null,null,{"$f":"SUMPRODUCT($G$2:$G$4,H2:H4)","v":0},"€ gesamt"]
[null,{"$f":"Direktzahlungen!C3","v":0},"ha AL",{"$f":"Ökoregelungen!D5","v":0},"%",{"$f":"B6*D6/100","v":0},"ha AL",{"$f":"IF(F6=0,0,H5/F6)","v":0},"€/ha"]
[]
["1d","Stufe 1","<=1%","€/ha",9.9999999000000006E-2,{"$f":"B12*0.01","v":0},{"$f":"IF(F12>E8,MIN(F8,F12),0)","v":0},900]
[null,"Stufe 2",">1% und <=2%","€/ha",{"$f":"B12*0.01","v":0},{"$f":"B12*0.02","v":0},{"$f":"IF(F12>E8,MIN(F9,F12-G8),0)","v":0},400]
[null,"Stufe 3",">2% und <= 6%","€/ha",{"$f":"B12*0.02","v":0},{"$f":"B12*0.06","v":0},{"$f":"IF(F12>E8,F12-G9-G8,0)","v":0},200]
[null,null,">=0,1 ha",null,null,null,null,{"$f":"SUMPRODUCT($G$8:$G$10,H8:H10)","v":0},"€ gesamt"]
[null,{"$f":"Direktzahlungen!C7","v":0},"ha DGL",{"$f":"Ökoregelungen!D8","v":0},"%",{"$f":"B12*D12/100","v":0},"ha DGL",{"$f":"IF(F12=0,0,H11/F12)","v":0},"€/ha"]
[]
[6,"Stufe 1",130]
[null,"Stufe 2",50]

{"sheet":"Berechnungen","index":10,"n_rows":23,"n_cols":11,"rows_kept":23,"cut":false,"hidden":false,"merged":[]}
[]
["1a",{"$f":"Ökoregelungen!C5","v":"1a  -  Aufstockung nichtproduktives AL"}]
[null,"  Entgangener Deckungsbeitrag","€/ha",1690]
[null,"+ Kosten für Mulchen","€/ha",30]
[null,"= Kosten gesamt","€/ha",{"$f":"D3+D4","v":1720}]
[]
["1b",{"$f":"Ökoregelungen!C6","v":"1b  -  Blühflächen/-streifen auf AL nach 1a"}]
[null,"  Etablierungskosten","€/ha",165]
[null,"/ Nutzungsdauer","Jahre",1]
[null,"= Kosten gesamt",null,{"$f":"IF(D9=0,0,D8/D9)","v":165}]
[null,null,null,null,null,null,null,"DG",20,"ha"]
[null,null,null,null,null,null,null,"AL",20,"ha"]
[null,null,null,null,null,null,null,"DK",2,"ha"]
[null,null,null,null,null,null,null,"LF",{"$f":"SUM(I11:I13)","v":42},"ha"]
[null,null,null,null,null,null,null,"LE",0.5,"ha"]
[null,null,null,null,null,null,null,"ZF (eh schon, nicht wg. Fruchtwechsel)",15,"ha"]
[null,null,null,null,null,null,null,"öko",0,"Ja=1/nein=0"]
[null,null,null,null,null,null,null,"Anteil Sommerungen",0.5,"(AL-LE)"]
[null,null,null,null,null,null,null,"Kosten Zwischenfrucht",50," EUR /ha"]
[]
[null,null,null,null,null,null,null,"Formel Fläche auf der Fruchtwechsel Kosten verursacht:",{"$f":"+IF(OR(Direktzahlungen!C3<=10,AND(Direktzahlungen!C9<=50,Direktzahlungen!C7/Direktzahlungen!C9>=0.75)),0,(Direktzahlungen!C3-Direktzahlungen!C6)-MAX((Direktzahlungen!C3-Direktzahlungen!C6)*0.5,I16))","v":{"$error":"#DIV/0!"}},"ha","Kein Fruchtwechsel gemäß GLÖZ 7 ist notwendig, wenn es sich um einen Ökobetrieb handelt oder wenn gleichzeitig die LF maximal 50 ha und der Grünlandanteil mindestens 75% umfasst."]
["Fruchtwechsel_Konditionalitäten"]
[null,null,null,null,null,null,null,"Formel Kosten  ganzj. Bodenbedeckung:",{"$f":"+I18*I19","v":25},"EUR/ha"]